Workbook

Sheet DATOS GENERALES
D2: ÍNDICE DE CALIDAD DE LAS CONSTRUCCIONES
D5: PROYECTO/OBRA
D7: DATOS OBLIGATORIOS | G7: OTROS DATOS:
D8: REF: | E8: OBRA A | G8: Obras de urbanización
D9: PRESUPUESTO DE EJECUCIÓN MATERIAL (PEM) en Euros | E9: 3450728.79 | G9: Año de construcción: 2010
D10: TIEMPO DE DURACIÓN en meses | E10: 12
D11: COMPLEJIDAD ORGANIZATIVA DE LA OBRA | E11: 1
D18: COMPLEJIDAD ORGANIZATIVA DE LAS EDIFICACIONES
E19: Baja | F19: Media | G19: Alta | H19: Muy alta
D20: Viviendas | F20: 1
D21: Oficinas | F21: 1
D22: Centros comerciales y de ocio | G22: 2
D23: Edificios docentes | F23: 1
D24: Hospitales | H24: 4
D25: Construcciones auxiliares | E25: 0.5 | G25: 2
D26: Aeropuertos | H26: 4
D27: Puertos | H27: 4
D28: Urbanización adscrita a los edificios | F28: 1
D29: Edificios administrativos | F29: 1
D30: Hoteles y residencias | F30: 1
D31: Edificios industriales | G31: 2

Sheet P1 P2 PROYECTO
D2: ÍNDICE DE CALIDAD DE LAS CONSTRUCCIONES
D5: PROYECTO/OBRA
D7: DATOS OBLIGATORIOS | K7: LEYENDA
D8: REF: | E8: OBRA A | L8: Colaboración positiva al IC
D9: PRESUPUESTO DE EJECUCIÓN MATERIAL (PEM) en Euros | E9: 3450728.79 | L9: Colaboración neutra al IC
D10: TIEMPO DE DURACIÓN en meses | E10: 12 | L10: Colaboración negativa al IC
D11: COMPLEJIDAD ORGANIZATIVA DE LA OBRA | E11: 1
D13: FASE PROYECTO
B15: Ref | C15: TIPO | D15: P1 INDICADORES PROYECTISTA | E15: VALORES | F15: INTERVALO | G15: MIN | H15: MAX | I15: ESTÁNDAR | J15: Peso del indicador | K15: PESO REAL | L15: Peso del grupo P1 | M15: Peso real del grupo P1 | N15: Desviación del IC | O15: ACCIONES
B16: P1.1 | C16: I- | D16: Número de aclaraciones solicitadas | E16: 12 | F16: (0,PEM/1000000) | G16: 0 | H16: =IF(E9="","",ROUNDUP((E9/150000),0)) -> 24 | I16: =IF(E9="","",ROUNDUP((G16+1/3*(H16-G16)),0)) -> 8 | J16: 10 | K16: =IF(E9="","",IF(E16="","",IF(E16<$G16,"ERROR",IF(E16>$H16,"ERROR",IF(E16<=$I16,$J16+(0.2*$J16*ABS(E16-$I16)/ABS($G16-$I16)),$J16*ABS($H16-E16)/ABS($H16-$I16)))))) -> 7.5 | O16: =IF(K16="","",IF(K16<$J16,"Requiere acciones correctoras",IF(K16>$J16,"Valorar acciones de estímulo",IF(K16=$J16,"No requiere acciones")))) -> Requiere acciones correctoras
B17: P1.2 | C17: I- | D17: Número de complementos solicitados | E17: 2 | F17: (0,PEM/2000000) | G17: 0 | H17: =IF(E9="","",ROUNDUP((E9/1000000),0)) -> 4 | I17: =IF(E9="","",ROUNDUP((G17+1/3*(H17-G17)),0)) -> 2 | J17: 10 | K17: =IF(E9="","",IF(E17="","",IF(E17<$G17,"ERROR",IF(E17>$H17,"ERROR",IF(E17<=$I17,$J17+(0.2*$J17*ABS(E17-$I17)/ABS($G17-$I17)),$J17*ABS($H17-E17)/ABS($H17-$I17)))))) -> 10 | O17: =IF(K17="","",IF(K17<$J17,"Requiere acciones correctoras",IF(K17>$J17,"Valorar acciones de estímulo",IF(K17=$J17,"No requiere acciones")))) -> No requiere acciones
B18: P1.3 | C18: I- | D18: Número de correcciones solicitadas | E18: 10 | F18: (0,PEM/2000000) | G18: 0 | H18: =IF(E9="","",ROUNDUP((E9/150000),0)) -> 24 | I18: =IF(E9="","",ROUNDUP((G18+1/3*(H18-G18)),0)) -> 8 | J18: 20 | K18: =IF(E9="","",IF(E18="","",IF(E18<$G18,"ERROR",IF(E18>$H18,"ERROR",IF(E18<=$I18,$J18+(0.2*$J18*ABS(E18-$I18)/ABS($G18-$I18)),$J18*ABS($H18-E18)/ABS($H18-$I18)))))) -> 17.5 | O18: =IF(K17="","",IF(K18<$J18,"Requiere acciones correctoras",IF(K18>$J18,"Valorar acciones de estímulo",IF(K18=$J18,"No requiere acciones")))) -> Requiere acciones correctoras
B19: P1.4 | C19: I- | D19: Días de respuesta a las solicitudes por parte del proyectista | E19: 5 | F19: (1, PEM/suma de solicitudes) | G19: 0 | H19: =16 -> 16 | I19: =ROUNDUP((G19+1/3*(H19-G19)),0) -> 6 | J19: 20 | K19: =IF(E19="","",IF(E19<$G19,"ERROR",IF(E19>$H19,"ERROR",IF(E19<=$I19,$J19+(0.2*$J19*ABS(E19-$I19)/ABS($G19-$I19)),$J19*ABS($H19-E19)/ABS($H19-$I19))))) -> 20.66666667 | O19: =IF(K19="","",IF(K19<$J19,"Requiere acciones correctoras",IF(K19>$J19,"Valorar acciones de estímulo",IF(K19=$J19,"No requiere acciones")))) -> Valorar acciones de estímulo
B20: P1.5 | C20: I+ | D20: % PEM destinado al Plan de Control | E20: 1.25 | F20: SI PEM (O, 300000);(1.5,3) SI PEM (300000, 1000000);(1,2) SI PEM>1000000;(0,5-1,5) | G20: 0.5 | H20: 1.25 | I20: =G20+2/3*(H20-G20) -> 1 | J20: 12 | K20: =IF(E20="","",IF(E20<$G20,"ERROR",IF(E20>$H20,"ERROR",IF(E20>=$I20,$J20+(0.2*$J20*ABS(E20-$I20)/ABS($H20-$I20)),$J20*ABS($G20-E20)/ABS($G20-$I20))))) -> 14.4 | O20: =IF(K20="","",IF(K20<$J20,"Requiere acciones correctoras",IF(K20>$J20,"Valorar acciones de estímulo",IF(K20=$J20,"No requiere acciones")))) -> Valorar acciones de estímulo
B21: P1.6 | C21: I+ | D21: Número de documentos complementarios/voluntarios | E21: 0 | F21: (0,PEM/1000000) | G21: 0 | H21: =IF(E9="","",ROUNDUP(($E$9/4000000),0)) -> 1 | I21: =IF(E9="","",ROUNDUP((G21+2/3*(H21-G21)),0)) -> 1 | J21: 5 | K21: =IF(E9="","",IF(E21="","",IF(E21<$G21,"ERROR",IF(E21>$H21,"ERROR",IF(E21>=$I21,$J21+(0.2*$J21*ABS(E21-$I21)/ABS($H21-$I21)),$J21*ABS($G21-E21)/ABS($G21-$I21)))))) -> 0 | O21: =IF(K21="","",IF(K21<$J21,"Requiere acciones correctoras",IF(K21>$J21,"Valorar acciones de estímulo",IF(K21=$J21,"No requiere acciones")))) -> Requiere acciones correctoras
J22: =SUM(J16:J21) -> 77 | K22: =SUM(K16:K21) -> 70.06666667 | L22: 20
D24: P2 INDICADORES SUPERVISORES PROYECTO | E24: VALORES | F24: INTERVALO | G24: MIN | H24: MAX | I24: ESTÁNDAR | J24: Peso del indicador | K24: PESO REAL | L24: Peso del grupo P2 | M24: Peso real del grupo P2 | N24: Desviación del IC | O24: ACCIONES
B25: P2.1 | C25: I- | D25: Tiempo de supervisión del proyecto (días laborables) | E25: 2 | F25: (PEM/750000, PEM/500000) | G25: =IF(E9="","",ROUNDUP((E9/2000000),0)) -> 2 | H25: =IF(E9="","",ROUNDUP((E9/500000),0)) -> 7 | I25: =IF(E9="","",ROUNDUP((G25+1/3*(H25-G25)),0)) -> 4 | J25: 10 | K25: =IF(E9="","",IF(E25="","",IF(E25<$G25,"ERROR",IF(E25>$H25,"ERROR",IF(E25<=$I25,$J25+(0.2*$J25*ABS(E25-$I25)/ABS($G25-$I25)),$J25*ABS($H25-E25)/ABS($H25-$I25)))))) -> 12 | O25: =IF(K25="","",IF(K25<$J25,"Requiere acciones correctoras",IF(K25>$J25,"Valorar acciones de estímulo",IF(K25=$J25,"No requiere acciones")))) -> Valorar acciones de estímulo
B26: P2.2 | C26: I- | D26: Tiempo de redacción del informe de supervisión (horas) | E26: 4 | F26: (PEM/1000000, PEM/750000) | G26: =IF(E9="","",ROUNDUP((E9/1000000),0)) -> 4 | H26: =IF(E9="","",ROUNDUP((E9/750000),0)) -> 5 | I26: =IF(E9="","",ROUNDUP((G26+1/3*(H26-G26)),0)) -> 5 | J26: 8 | K26: =IF(E9="","",IF(E26="","",IF(E26<$G26,"ERROR",IF(E26>$H26,"ERROR",IF(E26<=$I26,$J26+(0.2*$J26*ABS(E26-$I26)/ABS($G26-$I26)),$J26*ABS($H26-E26)/ABS($H26-$I26)))))) -> 9.6 | O26: =IF(K26="","",IF(K26<$J26,"Requiere acciones correctoras",IF(K26>$J26,"Valorar acciones de estímulo",IF(K26=$J26,"No requiere acciones")))) -> Valorar acciones de estímulo
B27: P2.3 | C27: I- | D27: Tiempo de comunicación al proyectista de las solicitudes (días laborables) | E27: 1 | F27: (1, 3) | G27: 1 | H27: 3 | I27: 2 | J27: 5 | K27: =IF(E27="","",IF(E27<$G27,"ERROR",IF(E27>$H27,"ERROR",IF(E27<=$I27,$J27+(0.2*$J27*ABS(E27-$I27)/ABS($G27-$I27)),$J27*ABS($H27-E27)/ABS($H27-$I27))))) -> 6 | O27: =IF(K27="","",IF(K27<$J27,"Requiere acciones correctoras",IF(K27>$J27,"Valorar acciones de estímulo",IF(K27=$J27,"No requiere acciones")))) -> Valorar acciones de estímulo
J28: =SUM(J25:J27) -> 23 | K28: =SUM(K25:K27) -> 27.6 | L28: 5
J29: =J22+J28 -> 100 | K29: =K22+K28 -> 97.66666667 | L29: =L22+L28 -> 25 | M29: =$L29*K29/100 -> 24.41666667 | N29: =M29/L29 -> 0.9766666667
D31: CONTRIBUCIÓN DEL PROYECTO AL IC | K31: =$K$29 -> 97.66666667

Sheet E1 SUPERVISORES EJECUCION
D2: ÍNDICE DE CALIDAD DE LAS CONSTRUCCIONES
D5: PROYECTO/OBRA
D7: DATOS OBLIGATORIOS
D8: REF: | E8: OBRA A
D9: PRESUPUESTO DE EJECUCIÓN MATERIAL (PEM) en Euros | E9: 3450728.79
D10: TIEMPO DE DURACIÓN en meses | E10: 12
D11: COMPLEJIDAD ORGANIZATIVA DE LA OBRA | E11: 1
D13: FASE EJECUCIÓN
B15: Ref | C15: TIPO | D15: E1 INDICADORES SUPERVISORES EJECUCIÓN | E15: MES 1 | F15: MES 2 | G15: MES 3 | H15: MES 4 | I15: MES 5 | J15: MES 6 | K15: MES 7 | L15: MES 8 | M15: MES 9 | N15: MES 10 | O15: MES 11 | P15: MES 12 | Q15: INTERVALO | R15: MIN | S15: MAX | T15: ESTÁNDAR | U15: Peso del indicador | V15: Preal MES 1 | W15: Preal MES 2 | X15: Preal MES 3 | Y15: Preal MES 4 | Z15: Preal MES 5 | AA15: Preal MES 6 | AB15: Preal MES 7 | AC15: PrealL MES 8 | AD15: Preal MES 9 | AE15: Preal Mes 10 | AF15: Preal Mes 11 | AG15: Preal Mes 12 | AH15: Peso del grupo E1 | AI15: Peso real grupo E1 | AJ15: Desviación del IC | AK15: ACCIONES MES 1
B16: E1.1 | C16: I- | D16: % Cumplimiento cuantitativo del plan de control/mes (€) | E16: 0.9 | F16: 1.05 | G16: 0.75 | H16: 0.75 | I16: 0.8 | J16: 1 | K16: 0.9 | L16: 1.05 | M16: 0.95 | N16: 1 | O16: 0.75 | P16: 1.2 | Q16: (75%PEM CONTROL, 125% PEM Control) | R16: 0.75 | S16: 1.25 | T16: 1 | U16: 10 | V16: =IF(E16="","",IF(E16<$R16,"ERROR",IF(E16>$S16,"ERROR",IF(E16<=$T16,$U16+(0.2*$U16*ABS(E16-$T16)/ABS($R16-$T16)),$U16*ABS($S16-E16)/ABS($S16-$T16))))) -> 10.8 | W16: =IF(F16="","",IF(F16<$R16,"ERROR",IF(F16>$S16,"ERROR",IF(F16<=$T16,$U16+(0.2*$U16*ABS(F16-$T16)/ABS($R16-$T16)),$U16*ABS($S16-F16)/ABS($S16-$T16))))) -> 8 | X16: 12 | Y16: 12 | Z16: 11.6 | AA16: 10 | AB16: 10.8 | AC16: 8 | AD16: 10.4 | AE16: 10 | AF16: 12 | AG16: 2 | AK16: =IF(V16="","",IF(V16<$U16,"Requiere acciones correctoras",IF(V16>$U16,"Valorar acciones de estímulo",IF(V16=$U16,"No requiere acciones")))) -> Valorar acciones de estímulo
B17: E1.2 | C17: I+ | D17: % de resultados aceptados/mes | E17: 1 | F17: 0.75 | G17: 0.85 | H17: 0.6 | I17: 0.75 | J17: 0.7 | K17: 0.9 | L17: 0.85 | M17: 0.8 | N17: 0.9 | O17: 0.75 | P17: 1 | Q17: (NINGUNO, TODOS) | R17: 0 | S17: 1 | T17: 0.8 | U17: 10 | V17: =IF(E17="","",IF(E17<$R17,"ERROR",IF(E17>$S17,"ERROR",IF(E17>=$T17,$U17+(0.2*$U17*ABS(E17-$T17)/ABS($S17-$T17)),$U17*ABS($R17-E17)/ABS($R17-$T17))))) -> 12 | W17: =IF(F17="","",IF(F17<$R17,"ERROR",IF(F17>$S17,"ERROR",IF(F17>=$T17,$U17+(0.2*$U17*ABS(F17-$T17)/ABS($S17-$T17)),$U17*ABS($R17-F17)/ABS($R17-$T17))))) -> 9.375 | X17: 10.5 | Y17: 7.5 | Z17: 9.375 | AA17: 8.75 | AB17: 11 | AC17: 10.5 | AD17: 10 | AE17: 11 | AF17: 9.375 | AG17: 12 | AK17: Valorar acciones de estímulo
B18: E1.3 | C18: I- | D18: % de resultados rechazados/mes | E18: 0.15 | F18: 0.25 | G18: 0.15 | H18: 0.7 | I18: 0.9 | J18: 0.85 | K18: 0.8 | L18: 0.9 | M18: 0.75 | N18: 1 | O18: 0.3 | P18: 0.5 | Q18: (NINGUNO, TODOS) | R18: 0 | S18: 1 | T18: 0.2 | U18: 10 | V18: =IF(E18="","",IF(E18<$R18,"ERROR",IF(E18>$S18,"ERROR",IF(E18<=$T18,$U18+(0.2*$U18*ABS(E18-$T18)/ABS($R18-$T18)),$U18*ABS($S18-E18)/ABS($S18-$T18))))) -> 10.5 | W18: =IF(F18="","",IF(F18<$R18,"ERROR",IF(F18>$S18,"ERROR",IF(F18<=$T18,$U18+(0.2*$U18*ABS(F18-$T18)/ABS($R18-$T18)),$U18*ABS($S18-F18)/ABS($S18-$T18))))) -> 9.375 | X18: 10.5 | Y18: 3.75 | Z18: 1.25 | AA18: 1.875 | AB18: 2.5 | AC18: 1.25 | AD18: 3.125 | AE18: 0 | AF18: 8.75 | AG18: 6.25 | AK18: Valorar acciones de estímulo
B19: E1.4 | C19: I- | D19: Nº de acciones que necesitan modificación de ejecución/mes | E19: 3 | F19: 2 | G19: 2 | H19: 1 | I19: 2 | J19: 1 | K19: 2 | L19: 3 | M19: 3 | N19: 3 | O19: 2 | P19: 2 | Q19: (0, (PEM/(Nº meses*20000))*1,33) | R19: 0 | S19: =IF(E10="","",IF(E9="","",ROUNDUP((E9/(E10*50000)),0))) -> 6 | T19: =IF(E10="","",IF(E9="","",ROUNDUP((R19+1/3*(S19-R19)),0))) -> 2 | U19: 10 | V19: =IF(E19="","",IF(E19<$R19,"ERROR",IF(E19>$S19,"ERROR",IF(E19<=$T19,$U19+(0.2*$U19*ABS(E19-$T19)/ABS($R19-$T19)),$U19*ABS($S19-E19)/ABS($S19-$T19))))) -> 7.5 | W19: 10 | X19: 10 | Y19: 11 | Z19: 10 | AA19: 11 | AB19: 10 | AC19: 7.5 | AD19: 7.5 | AE19: 7.5 | AF19: 10 | AG19: 10 | AK19: Requiere acciones correctoras
B20: E1.5 | C20: I- | D20: Nº de acciones que necesitan modificación presupuesto/mes | E20: 0 | F20: 1 | G20: 3 | H20: 1 | I20: 2 | J20: 3 | K20: 1 | L20: 2 | M20: 1 | N20: 2 | O20: 0 | P20: 2 | Q20: (0, (PEM/(Nº meses*20000))) | R20: 0 | S20: =IF(E10="","",IF(E9="","",ROUNDUP((E9/(E10*100000)),0))) -> 3 | T20: =IF(E10="","",IF(E9="","",ROUNDUP((R20+1/3*(S20-R20)),0))) -> 1 | U20: 20 | V20: =IF(E20="","",IF(E20<$R20,"ERROR",IF(E20>$S20,"ERROR",IF(E20<=$T20,$U20+(0.2*$U20*ABS(E20-$T20)/ABS($R20-$T20)),$U20*ABS($S20-E20)/ABS($S20-$T20))))) -> 24 | W20: 20 | X20: 0 | Y20: 20 | Z20: 10 | AA20: 0 | AB20: 20 | AC20: 10 | AD20: 20 | AE20: 10 | AF20: 24 | AG20: 10 | AK20: Valorar acciones de estímulo
B21: E1.6 | C21: I- | D21: Nº de no conformidades detectadas/mes (*) | E21: 34 | F21: 25 | G21: 18 | H21: 12 | I21: 14 | J21: 10 | K21: 15 | L21: 11 | M21: 8 | N21: 18 | O21: 10 | P21: 12 | Q21: (0, (PEM/(Nº meses*1500))) | R21: 0 | S21: =IF(E10="","",IF(E9="","",ROUNDUP((E9/(E10*5000)),0))) -> 58 | T21: =IF(E10="","",IF(E9="","",ROUNDUP((R21+1/3*(S21-R21)),0))) -> 20 | U21: 5 | V21: 3.157894737 | W21: 4.342105263 | X21: 5.1 | Y21: 5.4 | Z21: 5.3 | AA21: 5.5 | AB21: 5.25 | AC21: 5.45 | AD21: 5.6 | AE21: 5.1 | AF21: 5.5 | AG21: 5.4 | AK21: Requiere acciones correctoras
B22: E1.7 | C22: I+ | D22: Nº de no conformidades resueltas/mes (*) | E22: 16 | F22: 16 | G22: 10 | H22: 12 | I22: 11 | J22: 1 | K22: 0 | L22: 9 | M22: 14 | N22: 10 | O22: 12 | P22: 10 | Q22: (0, (PEM/(Nº meses*1500))) | R22: 0 | S22: =E21 -> 34 | T22: =ROUNDUP((R22+2/3*(S22-R22)),0) -> 23 | U22: 5 | V22: =IF(E22="","",IF(E22<$R22,"ERROR",IF(E22>$S22,"ERROR",IF(E22>=$T22,$U22+(0.2*$U22*ABS(E22-$T22)/ABS($S22-$T22)),$U22*ABS($R22-E22)/ABS($R22-$T22))))) -> 3.47826087 | W22: 3.47826087 | X22: 2.173913043 | Y22: 2.608695652 | Z22: 2.391304348 | AA22: 0.2173913043 | AB22: 0 | AC22: 1.956521739 | AD22: 3.043478261 | AE22: 2.173913043 | AF22: 2.608695652 | AG22: =IF(P22="","",IF(P22<$R22,"ERROR",IF(P22>$S22,"ERROR",IF(P22>=$T22,$U22+(0.2*$U22*ABS(P22-$T22)/ABS($S22-$T22)),$U22*ABS($R22-P22)/ABS($R22-$T22))))) -> 2.173913043 | AK22: Requiere acciones correctoras
B23: E1.8 | C23: I- | D23: Nº de no conformidades pendientes /mes (*) | E23: 18 | F23: 9 | G23: 15 | H23: 3 | I23: 4 | J23: 5 | K23: 6 | L23: 7 | M23: 8 | N23: 4 | O23: 6 | P23: 6 | Q23: (0, (PEM/(Nº meses*1500))) | R23: 0 | S23: =E21 -> 34 | T23: =ROUNDUP((R23+1/3*(S23-R23)),0) -> 12 | U23: 10 | V23: =IF(E23="","",IF(E23<$R23,"ERROR",IF(E23>$S23,"ERROR",IF(E23<=$T23,$U23+(0.2*$U23*ABS(E23-$T23)/ABS($R23-$T23)),$U23*ABS($S23-E23)/ABS($S23-$T23))))) -> 7.272727273 | W23: =IF(F23="","",IF(F23<$R23,"ERROR",IF(F23>$S23,"ERROR",IF(F23<=$T23,$U23+(0.2*$U23*ABS(F23-$T23)/ABS($R23-$T23)),$U23*ABS($S23-F23)/ABS($S23-$T23))))) -> 10.5 | X23: 8.636363636 | Y23: 11.5 | Z23: 11.33333333 | AA23: 11.16666667 | AB23: 11 | AC23: 10.83333333 | AD23: 10.66666667 | AE23: 11.33333333 | AF23: 11 | AG23: 11 | AK23: Requiere acciones correctoras
B24: E1.9 | C24: I- | D24: Nº de acciones de doble control/mes (*) | E24: 4 | F24: 8 | G24: 6 | H24: 4 | I24: 5 | J24: 6 | K24: 7 | L24: 8 | M24: 4 | N24: 2 | O24: 3 | P24: 4 | Q24: (0, (PEM/(Nº meses*5000)*)1/3) | R24: 0 | S24: =IF(E10="","",IF(E9="","",ROUNDUP((S21/3),0))) -> 20 | T24: =IF(E10="","",IF(E9="","",ROUNDUP((R24+1/3*(S24-R24)),0))) -> 7 | U24: 10 | V24: =IF(E24="","",IF(E24<$R24,"ERROR",IF(E24>$S24,"ERROR",IF(E24<=$T24,$U24+(0.2*$U24*ABS(E24-$T24)/ABS($R24-$T24)),$U24*ABS($S24-E24)/ABS($S24-$T24))))) -> 10.85714286 | W24: 9.230769231 | X24: 10.28571429 | Y24: 10.85714286 | Z24: 10.57142857 | AA24: 10.28571429 | AB24: 10 | AC24: 9.230769231 | AD24: 10.85714286 | AE24: 11.42857143 | AF24: 11.14285714 | AG24: 10.85714286 | AK24: Valorar acciones de estímulo
B25: E1.10 | C25: I- | D25: Nº de acciones de triple (o +) control/mes (*) | E25: 1 | F25: 4 | G25: 2 | H25: 0 | I25: 1 | J25: 2 | K25: 3 | L25: 4 | M25: 5 | N25: 3 | O25: 2 | P25: 3 | Q25: (0, (PEM/(Nº meses*5000)*)1/6) | R25: 0 | S25: =IF(E10="","",IF(E9="","",ROUNDUP((S21/6),0))) -> 10 | T25: =IF(E10="","",IF(E9="","",ROUNDUP((R25+1/3*(S25-R25)),0))) -> 4 | U25: 10 | V25: =IF(E25="","",IF(E25<$R25,"ERROR",IF(E25>$S25,"ERROR",IF(E25<=$T25,$U25+(0.2*$U25*ABS(E25-$T25)/ABS($R25-$T25)),$U25*ABS($S25-E25)/ABS($S25-$T25))))) -> 11.5 | W25: 10 | X25: 11 | Y25: 12 | Z25: 11.5 | AA25: 11 | AB25: 10.5 | AC25: 10 | AD25: 8.333333333 | AE25: 10.5 | AF25: 11 | AG25: 10.5 | AK25: Valorar acciones de estímulo
D26: IC´s PARCIALES DELGRUPO E1 | U26: =SUM(U16:U25) -> 100 | V26: =SUM(V16:V25) -> 101.0660257 | W26: =SUM(W16:W25) -> 94.30113536 | X26: 80.19599097 | Y26: 96.61583851 | Z26: 83.32106625 | AA26: 69.79477226 | AB26: 91.05 | AC26: 74.7206243 | AD26: 89.52562112 | AE26: 79.03581781 | AF26: 105.3765528 | AG26: 80.1810559 | AH26: 15 | AI26: =AG28*AH26/100 -> 13.06480626
D27: (*)Corregir con acumuladas
D28: CONTRIBUCIÓN DEL GRUPO E1 AL IC | AG28: =(SUM(V26:AG26))/12 -> 87.09870842

Sheet E2 DIRECTOR OBRA
D2: ÍNDICE DE CALIDAD DE LAS CONSTRUCCIONES
D5: PROYECTO/OBRA
D7: DATOS OBLIGATORIOS | K7: LEYENDA
D8: REF: | E8: OBRA A | L8: Colaboración positiva al IC
D9: PRESUPUESTO DE EJECUCIÓN MATERIAL (PEM) en Euros | E9: 3450728.79 | L9: Colaboración neutra al IC
D10: TIEMPO DE DURACIÓN en meses | E10: 12 | L10: Colaboración negativa al IC
D11: COMPLEJIDAD ORGANIZATIVA DE LA OBRA | E11: 1
D13: FASE EJECUCIÓN
D15: E2 INDICADORES DIRECTOR OBRA | E15: MES 1 | F15: MES2 | G15: MES 3 | H15: MES 4 | I15: MES 5 | J15: MES 6 | K15: MES 7 | L15: MES 8 | M15: MES 9 | N15: MES 10 | O15: MES 11 | P15: MES 12 | Q15: INTERVALO | R15: MIN | S15: MAX | T15: ESTÁNDAR | U15: Peso del indicador | V15: Preal MES 1 | W15: Preal MES 2 | X15: Preal MES 3 | Y15: Preal MES 4 | Z15: Preal MES 5 | AA15: Preal MES 6 | AB15: Preal MES 7 | AC15: PrealL MES 8 | AD15: Preal MES 9 | AE15: Preal Mes 10 | AF15: Preal Mes 11 | AG15: Preal Mes 12 | AH15: Peso del grupo E2 | AI15: Peso real del grupo E2 | AJ15: Desviación del IC | AK15: ACCIONES Mes 1
B16: E2.1 | C16: I- | D16: Nº de correcciones del proyecto/mes | E16: 1 | F16: 1 | G16: 1 | H16: 0 | I16: 1 | J16: 2 | K16: 3 | L16: 2 | M16: 2 | N16: 1 | O16: 1 | P16: 0 | Q16: (0, (PEM/(Nº meses*250000)) | R16: 0 | S16: =IF(E10="","",IF(E9="","",ROUNDUP((E9/(E10*50000)),0))) -> 6 | T16: =IF(E10="","",IF(E9="","",ROUNDUP((R16+1/3*(S16-R16)),0))) -> 2 | U16: 15 | V16: =IF($E$10="","",IF($E$9="","",IF(E16="","",IF(E16<$R16,"ERROR",IF(E16>$S16,"ERROR",IF(E16<=$T16,$U16+(0.2*$U16*ABS(E16-$T16)/ABS($R16-$T16)),$U16*ABS($S16-E16)/ABS($S16-$T16))))))) -> 16.5 | W16: =IF($E$10="","",IF($E$9="","",IF(F16="","",IF(F16<$R16,"ERROR",IF(F16>$S16,"ERROR",IF(F16<=$T16,$U16+(0.2*$U16*ABS(F16-$T16)/ABS($R16-$T16)),$U16*ABS($S16-F16)/ABS($S16-$T16))))))) -> 16.5 | X16: 16.5 | Y16: 18 | Z16: 16.5 | AA16: 15 | AB16: 11.25 | AC16: 15 | AD16: 15 | AE16: 16.5 | AF16: 16.5 | AG16: 18 | AK16: =IF(#REF!="","",IF(#REF!<$U16,"Requiere acciones correctoras",IF(#REF!>$U16,"Valorar acciones de estímulo",IF(#REF!=$U16,"No requiere acciones")))) -> 
B17: E2.2 | C17: I- | D17: Nº de correcciones de la ejecución/mes. IGUAL QUE E1.4 | E17: 1 | F17: 2 | G17: 4 | H17: 1 | I17: 2 | J17: 3 | K17: 4 | L17: 0 | M17: 0 | N17: 2 | O17: 2 | P17: 2 | Q17: (0, (PEM/(Nº meses*150000)) | R17: 0 | S17: =IF(E10="","",IF(E9="","",ROUNDUP((E9/(E10*50000)),0))) -> 6 | T17: =IF(E10="","",IF(E9="","",ROUNDUP((R17+1/3*(S17-R17)),0))) -> 2 | U17: 10 | V17: 11 | W17: 10 | X17: 5 | Y17: 11 | Z17: 10 | AA17: 7.5 | AB17: 5 | AC17: 12 | AD17: 12 | AE17: 10 | AF17: 10 | AG17: 10 | AK17: =IF(#REF!="","",IF(#REF!<$U17,"Requiere acciones correctoras",IF(#REF!>$U17,"Valorar acciones de estímulo",IF(#REF!=$U17,"No requiere acciones")))) -> 
B18: E2.3 | C18: I- | D18: Nº de modificaciones del presupuesto/mes. IGUAL QUE E1.5 | E18: 1 | F18: 1 | G18: 1 | H18: 1 | I18: 2 | J18: 1 | K18: 2 | L18: 1 | M18: 2 | N18: 1 | O18: 2 | P18: 3 | Q18: (0, (PEM/(Nº meses*250000)) | R18: 0 | S18: =IF(E10="","",IF(E9="","",ROUNDUP((E9/(E10*100000)),0))) -> 3 | T18: =IF(E10="","",IF(E9="","",ROUNDUP((R18+1/3*(S18-R18)),0))) -> 1 | U18: 10 | V18: 10 | W18: 10 | X18: 10 | Y18: 10 | Z18: 5 | AA18: 10 | AB18: 5 | AC18: 10 | AD18: 5 | AE18: 10 | AF18: 5 | AG18: 0 | AK18: =IF(#REF!="","",IF(#REF!<$U18,"Requiere acciones correctoras",IF(#REF!>$U18,"Valorar acciones de estímulo",IF(#REF!=$U18,"No requiere acciones")))) -> 
B19: E2.4 | C19: I+ | D19: Nº de instrucciones de modificación Libro Órdenes/mes | E19: 3 | F19: 3 | G19: 2 | H19: 2 | I19: 3 | J19: 4 | K19: 3 | L19: 2 | M19: 1 | N19: 2 | O19: 3 | P19: 2 | Q19: (0, (PEM/(Nº meses*150000)) | R19: 0 | S19: =IF(E10="","",IF(E9="","",ROUNDUP((E9/(E10*75000)),0))) -> 4 | T19: =IF(E10="","",IF(E9="","",ROUNDUP((R19+2/3*(S19-R19)),0))) -> 3 | U19: 5 | V19: =IF($E$10="","",IF($E$9="","",IF(E19="","",IF(E19<$R19,"ERROR",IF(E19>$S19,"ERROR",IF(E19>=$T19,$U19+(0.2*$U19*ABS(E19-$T19)/ABS($S19-$T19)),$U19*ABS($R19-E19)/ABS($R19-$T19))))))) -> 5 | W19: 5 | X19: 3.333333333 | Y19: 3.333333333 | Z19: 5 | AA19: 6 | AB19: 5 | AC19: 3.333333333 | AD19: 1.666666667 | AE19: 3.333333333 | AF19: 5 | AG19: 3.333333333 | AK19: =IF(#REF!="","",IF(#REF!<$U19,"Requiere acciones correctoras",IF(#REF!>$U19,"Valorar acciones de estímulo",IF(#REF!=$U19,"No requiere acciones")))) -> 
B20: E2.5 | C20: I+ | D20: Nº de apuntes (seguimiento) Libro Órdenes/mes | E20: 6 | F20: 4 | G20: 2 | H20: 4 | I20: 5 | J20: 6 | K20: 7 | L20: 8 | M20: 7 | N20: 6 | O20: 5 | P20: 6 | Q20: (1, (PEM/(Nº meses*75000)) | R20: 1 | S20: =IF(E10="","",IF(E9="","",ROUNDUP((E9/(E10*40000)),0))) -> 8 | T20: =IF(E10="","",IF(E9="","",ROUNDUP((R20+2/3*(S20-R20)),0))) -> 6 | U20: 10 | V20: 10 | W20: 6 | X20: 2 | Y20: 6 | Z20: 8 | AA20: 10 | AB20: 11 | AC20: 12 | AD20: 11 | AE20: 10 | AF20: 8 | AG20: 10 | AK20: =IF(#REF!="","",IF(#REF!<$U20,"Requiere acciones correctoras",IF(#REF!>$U20,"Valorar acciones de estímulo",IF(#REF!=$U20,"No requiere acciones")))) -> 
B21: E2.6 | C21: I+ | D21: Nº de visitas/reuniones de obra/mes | E21: 6 | F21: 4 | G21: 2 | H21: 6 | I21: 5 | J21: 4 | K21: 5 | L21: 6 | M21: 7 | N21: 8 | O21: 7 | P21: 6 | Q21: (1, (PEM/(Nº meses*75000)) | R21: 1 | S21: =IF(E10="","",IF(E9="","",ROUNDUP((E9/(E10*40000)),0))) -> 8 | T21: =IF(E10="","",IF(E9="","",ROUNDUP((R21+2/3*(S21-R21)),0))) -> 6 | U21: 5 | V21: 5 | W21: 3 | X21: 1 | Y21: 5 | Z21: 4 | AA21: 3 | AB21: 4 | AC21: 5 | AD21: 5.5 | AE21: 6 | AF21: 5.5 | AG21: 5 | AK21: =IF(#REF!="","",IF(#REF!<$U21,"Requiere acciones correctoras",IF(#REF!>$U21,"Valorar acciones de estímulo",IF(#REF!=$U21,"No requiere acciones")))) -> 
B22: E2.7 | C22: I+ | D22: Nº de informes de control para el promotor/mes | E22: 4 | F22: 2 | G22: 1 | H22: 5 | I22: 5 | J22: 6 | K22: 7 | L22: 6 | M22: 5 | N22: 4 | O22: 5 | P22: 6 | Q22: (0, (PEM/(Nº meses*150000)) | R22: 1 | S22: =IF(E10="","",IF(E9="","",ROUNDUP((E9/(E10*50000)),0))) -> 6 | T22: =IF(E10="","",IF(E9="","",ROUNDUP((R22+2/3*(S22-R22)),0))) -> 5 | U22: 15 | V22: 11.25 | W22: 3.75 | X22: 0 | Y22: 15 | Z22: 15 | AA22: 18 | AB22: ERROR | AC22: 18 | AD22: 15 | AE22: 11.25 | AF22: 15 | AG22: 18 | AK22: =IF(#REF!="","",IF(#REF!<$U22,"Requiere acciones correctoras",IF(#REF!>$U22,"Valorar acciones de estímulo",IF(#REF!=$U22,"No requiere acciones")))) -> 
B23: E2.8 | C23: I- | D23: Nº de instrucciones del coordinador de seguridad laboral/mes | E23: 2 | F23: 3 | G23: 4 | H23: 2 | I23: 3 | J23: 4 | K23: 2 | L23: 3 | M23: 1 | N23: 3 | O23: 2 | P23: 2 | Q23: (0, (PEM/(Nº meses*150000)) | R23: 0 | S23: =IF(E10="","",IF(E9="","",ROUNDUP((E9/(E10*75000)),0))) -> 4 | T23: =IF(E10="","",IF(E9="","",ROUNDUP((R23+1/3*(S23-R23)),0))) -> 2 | U23: 20 | V23: =IF($E$10="","",IF($E$9="","",IF(E23="","",IF(E23<$R23,"ERROR",IF(E23>$S23,"ERROR",IF(E23<=$T23,$U23+(0.2*$U23*ABS(E23-$T23)/ABS($R23-$T23)),$U23*ABS($S23-E23)/ABS($S23-$T23))))))) -> 20 | W23: 10 | X23: 0 | Y23: 20 | Z23: 10 | AA23: 0 | AB23: 20 | AC23: 10 | AD23: 22 | AE23: 10 | AF23: 20 | AG23: 20 | AK23: =IF(#REF!="","",IF(#REF!<$U23,"Requiere acciones correctoras",IF(#REF!>$U23,"Valorar acciones de estímulo",IF(#REF!=$U23,"No requiere acciones")))) -> 
B24: E2.9 | C24: I- | D24: Nº de recomendaciones de la Asistencia Técnica/mes | E24: 10 | F24: 10 | G24: 10 | H24: 8 | I24: 9 | J24: 10 | K24: 10 | L24: 12 | M24: 11 | N24: 10 | O24: 16 | P24: 15 | Q24: (0, (PEM/(Nº meses*20000)) | R24: 0 | S24: =IF(E10="","",IF(E9="","",ROUNDUP((E9/(E10*10000)),0))) -> 29 | T24: =IF(E10="","",IF(E9="","",ROUNDUP((R24+1/3*(S24-R24)),0))) -> 10 | U24: 5 | V24: 5 | W24: 5 | X24: 5 | Y24: 5.2 | Z24: 5.1 | AA24: 5 | AB24: 5 | AC24: 4.473684211 | AD24: 4.736842105 | AE24: 5 | AF24: 3.421052632 | AG24: 3.684210526 | AK24: =IF(#REF!="","",IF(#REF!<$U24,"Requiere acciones correctoras",IF(#REF!>$U24,"Valorar acciones de estímulo",IF(#REF!=$U24,"No requiere acciones")))) -> 
B25: E2.10 | C25: I+ | D25: % de recomendaciones de la Asistencia Técnica consideradas/mes | E25: 10 | F25: 5 | G25: 3 | H25: 10 | I25: 12 | J25: 13 | K25: 16 | L25: 18 | M25: 19 | N25: 15 | O25: 20 | P25: 19 | Q25: (0, (PEM/(Nº meses*25000)) | R25: 0 | S25: =E24 -> 10 | T25: =IF(E10="","",IF(E9="","",ROUNDUP((R25+2/3*(S25-R25)),0))) -> 7 | U25: 5 | V25: =IF($E$10="","",IF($E$9="","",IF(E25="","",IF(E25<$R25,"ERROR",IF(E25>$S25,"ERROR",IF(E25>=$T25,$U25+(0.2*$U25*ABS(E25-$T25)/ABS($S25-$T25)),$U25*ABS($R25-E25)/ABS($R25-$T25))))))) -> 6 | W25: 3.571428571 | X25: 2.142857143 | Y25: 6 | Z25: ERROR | AA25: ERROR | AB25: ERROR | AC25: ERROR | AD25: ERROR | AE25: ERROR | AF25: ERROR | AG25: ERROR | AK25: =IF(#REF!="","",IF(#REF!<$U25,"Requiere acciones correctoras",IF(#REF!>$U25,"Valorar acciones de estímulo",IF(#REF!=$U25,"No requiere acciones")))) -> 
D26: IC´s PARCIALES DELGRUPO E2 | U26: =SUM(U16:U25) -> 100 | V26: 99.75 | W26: 72.82142857 | X26: 44.97619048 | Y26: 99.53333333 | Z26: 78.6 | AA26: 74.5 | AB26: 66.25 | AC26: 89.80701754 | AD26: 91.90350877 | AE26: 82.08333333 | AF26: 88.42105263 | AG26: 88.01754386 | AH26: 10 | AI26: =AG28*AH26/100 -> 8.138861738
D28: CONTRIBUCIÓN DEL GRUPO E2 AL IC | AG28: =(SUM(V26:AG26))/12 -> 81.38861738

Sheet E3 DIRECTOR EJECUCION
D2: ÍNDICE DE CALIDAD DE LAS CONSTRUCCIONES
D5: PROYECTO/OBRA
D7: DATOS OBLIGATORIOS | K7: LEYENDA
D8: REF: | E8: OBRA A | L8: Colaboración positiva al IC
D9: PRESUPUESTO DE EJECUCIÓN MATERIAL (PEM) en Euros | E9: 3450728.79 | L9: Colaboración neutra al IC
D10: TIEMPO DE DURACIÓN en meses | E10: 12 | L10: Colaboración negativa al IC
D11: COMPLEJIDAD ORGANIZATIVA DE LA OBRA | E11: 1
D13: FASE EJECUCIÓN
D15: E3 INDICADORES DIRECTOR EJECUCIÓN OBRA | E15: MES 1 | F15: MES2 | G15: MES 3 | H15: MES 4 | I15: MES 5 | J15: MES 6 | K15: MES 7 | L15: MES 8 | M15: MES 9 | N15: MES 10 | O15: MES 11 | P15: MES 12 | Q15: INTERVALO | R15: MIN | S15: MAX | T15: ESTÁNDAR | U15: Peso del indicador | V15: Preal MES 1 | W15: Preal MES 2 | X15: Preal MES 3 | Y15: Preal MES 4 | Z15: Preal MES 5 | AA15: Preal MES 6 | AB15: Preal MES 7 | AC15: PrealL MES 8 | AD15: Preal MES 9 | AE15: Preal Mes 10 | AF15: Preal Mes 11 | AG15: Preal Mes 12 | AH15: Peso del grupo E3 | AI15: Peso real del grupo E3 | AJ15: Desviación del IC | AK15: ACCIONES
D16: DATO: Nº Materiales recibidos/mes= Total mat | E16: 10 | W16: =IF($E$10="","",IF($E$9="","",IF(F16="","",IF(F16<$R16,"ERROR",IF(F16>$S16,"ERROR",IF(F16<=$T16,$U16+(0.2*$U16*ABS(F16-$T16)/ABS($R16-$T16)),$U16*ABS($S16-F16)/ABS($S16-$T16))))))) -> 
B17: E3.1 | C17: I- | D17: Nº de materiales rechazados/mes por doc. incompleta | E17: 2 | F17: 3 | G17: 4 | H17: 5 | I17: 4 | J17: 7 | K17: 1 | L17: 5 | M17: 4 | N17: 3 | O17: 2 | P17: 0 | Q17: (0, Total mat) | R17: 0 | S17: =E16 -> 10 | T17: =ROUNDUP((R17+1/3*(S17-R17)),0) -> 4 | U17: 10 | V17: =IF(E17="","",IF(E17<$R17,"ERROR",IF(E17>$S17,"ERROR",IF(E17<=$T17,$U17+(0.2*$U17*ABS(E17-$T17)/ABS($R17-$T17)),$U17*ABS($S17-E17)/ABS($S17-$T17))))) -> 11 | W17: =IF(F17="","",IF(F17<$R17,"ERROR",IF(F17>$S17,"ERROR",IF(F17<=$T17,$U17+(0.2*$U17*ABS(F17-$T17)/ABS($R17-$T17)),$U17*ABS($S17-F17)/ABS($S17-$T17))))) -> 10.5 | X17: 10 | Y17: 8.333333333 | Z17: 10 | AA17: 5 | AB17: 11.5 | AC17: 8.333333333 | AD17: 10 | AE17: 10.5 | AF17: 11 | AG17: 12 | AK17: =IF(V17="","",IF(V17<$U17,"Requiere acciones correctoras",IF(V17>$U17,"Valorar acciones de estímulo",IF(V17=$U17,"No requiere acciones")))) -> Valorar acciones de estímulo
B18: E3.2 | C18: I+ | D18: Nº de materiales aceptados/mes | E18: 8 | F18: 7 | G18: 6 | H18: 5 | I18: 6 | J18: 3 | K18: 9 | L18: 5 | M18: 6 | N18: 7 | O18: 8 | P18: 10 | Q18: (0, Total mat) | R18: 0 | S18: =E16 -> 10 | T18: =ROUNDUP((R18+2/3*(S18-R18)),0) -> 7 | U18: 5 | V18: =IF($E$10="","",IF($E$9="","",IF(E18="","",IF(E18<$R18,"ERROR",IF(E18>$S18,"ERROR",IF(E18>=$T18,$U18+(0.2*$U18*ABS(E18-$T18)/ABS($S18-$T18)),$U18*ABS($R18-E18)/ABS($R18-$T18))))))) -> 5.333333333 | W18: =IF($E$10="","",IF($E$9="","",IF(F18="","",IF(F18<$R18,"ERROR",IF(F18>$S18,"ERROR",IF(F18>=$T18,$U18+(0.2*$U18*ABS(F18-$T18)/ABS($S18-$T18)),$U18*ABS($R18-F18)/ABS($R18-$T18))))))) -> 5 | X18: 4.285714286 | Y18: 3.571428571 | Z18: 4.285714286 | AA18: 2.142857143 | AB18: 5.666666667 | AC18: 3.571428571 | AD18: 4.285714286 | AE18: 5 | AF18: 5.333333333 | AG18: 6 | AK18: Valorar acciones de estímulo
B19: E3.3 | C19: I- | D19: Nº de solicitudes complementarias de doc. de materiales | E19: 5 | F19: 3 | G19: 3 | H19: 3 | I19: 2 | J19: 1 | K19: 2 | L19: 1 | M19: 3 | N19: 2 | O19: 1 | P19: 0 | Q19: (0, Total mat) | R19: 0 | S19: =E16 -> 10 | T19: =ROUNDUP((R19+1/3*(S19-R19)),0) -> 4 | U19: 5 | V19: =IF($E$10="","",IF($E$9="","",IF(E19="","",IF(E19<$R19,"ERROR",IF(E19>$S19,"ERROR",IF(E19<=$T19,$U19+(0.2*$U19*ABS(E19-$T19)/ABS($R19-$T19)),$U19*ABS($S19-E19)/ABS($S19-$T19))))))) -> 4.166666667 | W19: =IF($E$10="","",IF($E$9="","",IF(F19="","",IF(F19<$R19,"ERROR",IF(F19>$S19,"ERROR",IF(F19<=$T19,$U19+(0.2*$U19*ABS(F19-$T19)/ABS($R19-$T19)),$U19*ABS($S19-F19)/ABS($S19-$T19))))))) -> 5.25 | X19: 5.25 | Y19: 5.25 | Z19: 5.5 | AA19: 5.75 | AB19: 5.5 | AC19: 5.75 | AD19: 5.25 | AE19: 5.5 | AF19: 5.75 | AG19: 6 | AK19: Requiere acciones correctoras
B20: E3.4 | C20: I- | D20: Nº de correcciones de la ejecución/mes | E20: 1 | F20: 2 | G20: 5 | H20: 4 | I20: 3 | J20: 2 | K20: 3 | L20: 2 | M20: 1 | N20: 0 | O20: 3 | P20: 2 | Q20: (0, (PEM/(Nº meses*150000))*1,33) | R20: 0 | S20: =IF(E10="","",IF(E9="","",ROUNDUP((E9/(E10*75000)),0))) -> 4 | T20: =IF(E10="","",IF(E9="","",ROUNDUP((R20+1/3*(S20-R20)),0))) -> 2 | U20: 10 | V20: =IF($E$10="","",IF($E$9="","",IF(E20="","",IF(E20<$R20,"ERROR",IF(E20>$S20,"ERROR",IF(E20<=$T20,$U20+(0.2*$U20*ABS(E20-$T20)/ABS($R20-$T20)),$U20*ABS($S20-E20)/ABS($S20-$T20))))))) -> 11 | W20: 10 | X20: ERROR | Y20: 0 | Z20: 5 | AA20: 10 | AB20: 5 | AC20: 10 | AD20: 11 | AE20: 12 | AF20: 5 | AG20: 10 | AK20: Valorar acciones de estímulo
B21: E3.5 | C21: I+ | D21: Nº de recomendaciones de la A. T. consideradas/mes | E21: 3 | F21: 2 | G21: 4 | H21: 5 | I21: 4 | J21: 3 | K21: 2 | L21: 3 | M21: 4 | N21: 3 | O21: 5 | P21: 7 | Q21: (0, (PEM/(Nº meses*25000)) | R21: 0 | S21: =IF(E10="","",IF(E9="","",ROUNDUP((E9/(E10*25000)),0))) -> 12 | T21: =IF(E10="","",IF(E9="","",ROUNDUP((R21+2/3*(S21-R21)),0))) -> 8 | U21: 5 | V21: =IF($E$10="","",IF($E$9="","",IF(E21="","",IF(E21<$R21,"ERROR",IF(E21>$S21,"ERROR",IF(E21>=$T21,$U21+(0.2*$U21*ABS(E21-$T21)/ABS($S21-$T21)),$U21*ABS($R21-E21)/ABS($R21-$T21))))))) -> 1.875 | W21: =IF($E$10="","",IF($E$9="","",IF(F21="","",IF(F21<$R21,"ERROR",IF(F21>$S21,"ERROR",IF(F21>=$T21,$U21+(0.2*$U21*ABS(F21-$T21)/ABS($S21-$T21)),$U21*ABS($R21-F21)/ABS($R21-$T21))))))) -> 1.25 | X21: 2.5 | Y21: 3.125 | Z21: 2.5 | AA21: 1.875 | AB21: 1.25 | AC21: 1.875 | AD21: 2.5 | AE21: 1.875 | AF21: 3.125 | AG21: 4.375 | AK21: Requiere acciones correctoras
B22: E3.6 | C22: I+ | D22: Nº de visitas/reuniones de obra | E22: 4 | F22: 4 | G22: 4 | H22: 4 | I22: 5 | J22: 6 | K22: 5 | L22: 4 | M22: 4 | N22: 4 | O22: 5 | P22: 5 | Q22: (1, (PEM/(Nº meses*75000)) | R22: 1 | S22: =IF(E10="","",IF(E9="","",ROUNDUP((E9/(E10*50000)),0))) -> 6 | T22: =IF(E10="","",IF(E9="","",ROUNDUP((R22+2/3*(S22-R22)),0))) -> 5 | U22: 5 | V22: =IF($E$10="","",IF($E$9="","",IF(E22="","",IF(E22<$R22,"ERROR",IF(E22>$S22,"ERROR",IF(E22>=$T22,$U22+(0.2*$U22*ABS(E22-$T22)/ABS($S22-$T22)),$U22*ABS($R22-E22)/ABS($R22-$T22))))))) -> 3.75 | W22: 3.75 | X22: 3.75 | Y22: 3.75 | Z22: 5 | AA22: 6 | AB22: 5 | AC22: 3.75 | AD22: 3.75 | AE22: 3.75 | AF22: 5 | AG22: 5 | AK22: Requiere acciones correctoras
B23: E3.7 | C23: I- | D23: Nº de recomendaciones del Coordinador de seguridad/mes | E23: 3 | F23: 2 | G23: 3 | H23: 3 | I23: 2 | J23: 2 | K23: 2 | L23: 3 | M23: 2 | N23: 3 | O23: 2 | P23: 1 | Q23: (0, (PEM/(Nº meses*150000)) | R23: 0 | S23: =IF(E10="","",IF(E9="","",ROUNDUP((E9/(E10*75000)),0))) -> 4 | T23: =IF(E10="","",IF(E9="","",ROUNDUP((R23+1/3*(S23-R23)),0))) -> 2 | U23: 20 | V23: =IF($E$10="","",IF($E$9="","",IF(E23="","",IF(E23<$R23,"ERROR",IF(E23>$S23,"ERROR",IF(E23<=$T23,$U23+(0.2*$U23*ABS(E23-$T23)/ABS($R23-$T23)),$U23*ABS($S23-E23)/ABS($S23-$T23))))))) -> 10 | W23: =IF($E$10="","",IF($E$9="","",IF(F23="","",IF(F23<$R23,"ERROR",IF(F23>$S23,"ERROR",IF(F23<=$T23,$U23+(0.2*$U23*ABS(F23-$T23)/ABS($R23-$T23)),$U23*ABS($S23-F23)/ABS($S23-$T23))))))) -> 20 | X23: 10 | Y23: 10 | Z23: 20 | AA23: 20 | AB23: 20 | AC23: 10 | AD23: 20 | AE23: 10 | AF23: 20 | AG23: 22 | AK23: Requiere acciones correctoras
B24: E3.8 | C24: I- | D24: % Ajuste en plazo de la aplicación del Plan de Control/mes | E24: 0.9 | F24: 0.95 | G24: 1 | H24: 1 | I24: 1.05 | J24: 1.05 | K24: 1 | L24: 1.1 | M24: 1 | N24: 1 | O24: 1 | P24: 1 | Q24: (75%PEM CONTROL, 125% PEM Control) | R24: 0.75 | S24: 1.25 | T24: 1 | U24: 20 | V24: =IF($E$10="","",IF($E$9="","",IF(E24="","",IF(E24<$R24,"ERROR",IF(E24>$S24,"ERROR",IF(E24<=$T24,$U24+(0.2*$U24*ABS(E24-$T24)/ABS($R24-$T24)),$U24*ABS($S24-E24)/ABS($S24-$T24))))))) -> 21.6 | W24: 20.8 | X24: 20 | Y24: 20 | Z24: 16 | AA24: 16 | AB24: 20 | AC24: 12 | AD24: 20 | AE24: 20 | AF24: 20 | AG24: 20 | AK24: Valorar acciones de estímulo
B25: E3.9 | C25: I- | D25: % Ajuste en presupuesto de la aplicación del Plan de Control/mes | E25: 0.9 | F25: 1.05 | G25: 0.75 | H25: 0.75 | I25: 0.8 | J25: 1 | K25: 0.9 | L25: 1.05 | M25: 0.95 | N25: 1 | O25: 0.75 | P25: 1.2 | Q25: (75%PEM CONTROL, 125% PEM Control) | R25: 0.75 | S25: 1.25 | T25: 1 | U25: 20 | V25: =IF($E$10="","",IF($E$9="","",IF(E25="","",IF(E25<$R25,"ERROR",IF(E25>$S25,"ERROR",IF(E25<=$T25,$U25+(0.2*$U25*ABS(E25-$T25)/ABS($R25-$T25)),$U25*ABS($S25-E25)/ABS($S25-$T25))))))) -> 21.6 | W25: 16 | X25: 24 | Y25: 24 | Z25: 23.2 | AA25: 20 | AB25: 21.6 | AC25: 16 | AD25: 20.8 | AE25: 20 | AF25: 24 | AG25: 4 | AK25: Valorar acciones de estímulo
D26: IC´s PARCIALES DELGRUPO E3 | U26: =SUM(U17:U25) -> 100 | V26: =SUM(V17:V25) -> 90.325 | W26: =SUM(W16:W25) -> 92.55 | X26: 79.78571429 | Y26: 78.0297619 | Z26: 91.48571429 | AA26: 86.76785714 | AB26: 95.51666667 | AC26: 71.2797619 | AD26: 97.58571429 | AE26: 88.625 | AF26: 99.20833333 | AG26: 89.375 | AH26: 10 | AI26: =$AH26*V26/100 -> 9.0325 | AJ26: =AI26/AH26 -> 0.90325
D28: CONTRIBUCIÓN DEL GRUPO E3 AL IC | AG28: =(SUM(V26:AG26))/12 -> 88.37787698

Sheet E4 ASISTENCIA TECNICA
D2: ÍNDICE DE CALIDAD DE LAS CONSTRUCCIONES
D5: PROYECTO/OBRA
D7: DATOS OBLIGATORIOS | V7: LEYENDA
D8: REF: | E8: OBRA A | W8: Colaboración positiva al IC
D9: PRESUPUESTO DE EJECUCIÓN MATERIAL (PEM) en Euros | E9: 3450728.79 | W9: Colaboración neutra al IC
D10: TIEMPO DE DURACIÓN en meses | E10: 12 | W10: Colaboración negativa al IC
D11: COMPLEJIDAD ORGANIZATIVA DE LA OBRA | E11: 1
D13: FASE EJECUCIÓN
D15: E4 INDICADORES ASISTENCIA TÉCNICA | E15: MES 1 | F15: MES 2 | G15: MES 3 | H15: MES 4 | I15: MES 5 | J15: MES 6 | K15: MES 7 | L15: MES 8 | M15: MES 9 | N15: MES 10 | O15: MES 11 | P15: MES 12 | Q15: INTERVALO | R15: MIN | S15: MAX | T15: ESTÁNDAR | U15: Peso de referencia | V15: PESO REAL MES 1 | W15: PESO REAL MES 2 | X15: PESO REAL MES 3 | Y15: PESO REAL MES 4 | Z15: PESO REAL MES 5 | AA15: PESO REAL MES 6 | AB15: PESO REAL MES 7 | AC15: PESO REAL MES 8 | AD15: PESO REAL MES 9 | AE15: PESO REAL MES 10 | AF15: PESO REAL MES 11 | AG15: PESO REAL MES 12 | AH15: Peso del grupo E4 | AI15: Peso real del grupo E4 | AJ15: Desviación del IC | AK15: ACCIONES
B16: E4.1 | C16: I- | D16: Nº de no conformidades detectadas/mes (*) | E16: 18 | F16: 15 | G16: 10 | H16: 13 | I16: 12 | J16: 11 | K16: 13 | L16: 14 | M16: 13 | N16: 12 | O16: 11 | P16: 6 | Q16: (0, (PEM/(Nº meses*1500))) | R16: 0 | S16: =IF(E10="","",IF(E9="","",ROUNDUP((E9/(E10*15000)),0))) -> 20 | T16: =IF(E10="","",IF(E9="","",ROUNDUP((R16+1/3*(S16-R16)),0))) -> 7 | U16: 10 | V16: =IF($E10="","",IF($E9="","",IF(E16="","",IF(E16<$R16,"ERROR",IF(E16>$S16,"ERROR",IF(E16<=$T16,$U16+(0.2*$U16*ABS(E16-$T16)/ABS($R16-$T16)),$U16*ABS($S16-E16)/ABS($S16-$T16))))))) -> 1.538461538 | W16: =IF($E10="","",IF($E9="","",IF(F16="","",IF(F16<$R16,"ERROR",IF(F16>$S16,"ERROR",IF(F16<=$T16,$U16+(0.2*$U16*ABS(F16-$T16)/ABS($R16-$T16)),$U16*ABS($S16-F16)/ABS($S16-$T16))))))) -> 3.846153846 | X16: 7.692307692 | Y16: 5.384615385 | Z16: 6.153846154 | AA16: 6.923076923 | AB16: 5.384615385 | AC16: 4.615384615 | AD16: 5.384615385 | AE16: 6.153846154 | AF16: 6.923076923 | AG16: 10.28571429 | AK16: =IF(V16="","",IF(V16<$U16,"Requiere acciones correctoras",IF(V16>$U16,"Valorar acciones de estímulo",IF(V16=$U16,"No requiere acciones")))) -> Requiere acciones correctoras
B17: E4.2 | C17: I+ | D17: Nº de no conformidades resueltas/mes (*) | E17: 16 | F17: 15 | G17: 11 | H17: 12 | I17: 14 | J17: 11 | K17: 12 | L17: 11 | M17: 14 | N17: 12 | O17: 11 | P17: 8 | Q17: (0, (PEM/(Nº meses*1500))) | R17: 0 | S17: =E16 -> 18 | T17: =ROUNDUP((R17+2/3*(S17-R17)),0) -> 12 | U17: 5 | V17: =IF(E17="","",IF(E17<$R17,"ERROR",IF(E17>$S17,"ERROR",IF(E17>=$T17,$U17+(0.2*$U17*ABS(E17-$T17)/ABS($S17-$T17)),$U17*ABS($R17-E17)/ABS($R17-$T17))))) -> 5.666666667 | W17: =IF(F17="","",IF(F17<$R17,"ERROR",IF(F17>$S17,"ERROR",IF(F17>=$T17,$U17+(0.2*$U17*ABS(F17-$T17)/ABS($S17-$T17)),$U17*ABS($R17-F17)/ABS($R17-$T17))))) -> 5.5 | X17: 4.583333333 | Y17: 5 | Z17: 5.333333333 | AA17: 4.583333333 | AB17: 5 | AC17: 4.583333333 | AD17: 5.333333333 | AE17: 5 | AF17: 4.583333333 | AG17: 3.333333333 | AK17: Valorar acciones de estímulo
B18: E4.3 | C18: I- | D18: Nº de no conformidades pendientes /mes (*) | E18: =E16-E17 -> 2 | F18: =E18+F16-F17 -> 2 | G18: =F18+G16-G17 -> 1 | H18: =G18+H16-H17 -> 2 | I18: 0 | J18: 0 | K18: 1 | L18: 4 | M18: 3 | N18: 3 | O18: 3 | P18: 1 | Q18: (0, (PEM/(Nº meses*1500))) | R18: 0 | S18: =E16 -> 18 | T18: =ROUNDUP((R18+1/3*(S18-R18)),0) -> 6 | U18: 10 | V18: =IF(E18="","",IF(E18<$R18,"ERROR",IF(E18>$S18,"ERROR",IF(E18<=$T18,$U18+(0.2*$U18*ABS(E18-$T18)/ABS($R18-$T18)),$U18*ABS($S18-E18)/ABS($S18-$T18))))) -> 11.33333333 | W18: =IF(F18="","",IF(F18<$R18,"ERROR",IF(F18>$S18,"ERROR",IF(F18<=$T18,$U18+(0.2*$U18*ABS(F18-$T18)/ABS($R18-$T18)),$U18*ABS($S18-F18)/ABS($S18-$T18))))) -> 11.33333333 | X18: 11.66666667 | Y18: 11.33333333 | Z18: 12 | AA18: 12 | AB18: 11.66666667 | AC18: 10.66666667 | AD18: 11 | AE18: 11 | AF18: 11 | AG18: 11.66666667 | AK18: Valorar acciones de estímulo
B19: E4.4 | C19: I- | D19: Nº de acciones de doble control/mes (*) | E19: 4 | F19: 4 | G19: 2 | H19: 6 | I19: 3 | J19: 4 | K19: 6 | L19: 2 | M19: 4 | N19: 7 | O19: 6 | P19: 4 | Q19: (0, No conformidades/3) | R19: 0 | S19: =IF(E10="","",IF(E9="","",ROUNDUP((S16/3),0))) -> 7 | T19: =IF(E10="","",IF(E9="","",ROUNDUP((R19+1/3*(S19-R19)),0))) -> 3 | U19: 5 | V19: =IF($E$10="","",IF($E$9="","",IF(E19="","",IF(E19<$R19,"ERROR",IF(E19>$S19,"ERROR",IF(E19<=$T19,$U19+(0.2*$U19*ABS(E19-$T19)/ABS($R19-$T19)),$U19*ABS($S19-E19)/ABS($S19-$T19))))))) -> 3.75 | W19: =IF($E$10="","",IF($E$9="","",IF(F19="","",IF(F19<$R19,"ERROR",IF(F19>$S19,"ERROR",IF(F19<=$T19,$U19+(0.2*$U19*ABS(F19-$T19)/ABS($R19-$T19)),$U19*ABS($S19-F19)/ABS($S19-$T19))))))) -> 3.75 | X19: 5.333333333 | Y19: 1.25 | Z19: 5 | AA19: 3.75 | AB19: 1.25 | AC19: 5.333333333 | AD19: 3.75 | AE19: 0 | AF19: 1.25 | AG19: 3.75 | AK19: Requiere acciones correctoras
B20: E4.5 | C20: I- | D20: Nº de acciones de triple (o +) control/mes (*) | E20: 1 | F20: 2 | G20: 1 | H20: 1 | I20: 1 | J20: 2 | K20: 3 | L20: 1 | M20: 2 | N20: 3 | O20: 3 | P20: 2 | Q20: (0, No conformidades/6) | R20: 0 | S20: =IF(E10="","",IF(E9="","",ROUNDUP((S16/6),0))) -> 4 | T20: =IF(E10="","",IF(E9="","",ROUNDUP((R20+1/3*(S20-R20)),0))) -> 2 | U20: 10 | V20: =IF($E$10="","",IF($E$9="","",IF(E20="","",IF(E20<$R20,"ERROR",IF(E20>$S20,"ERROR",IF(E20<=$T20,$U20+(0.2*$U20*ABS(E20-$T20)/ABS($R20-$T20)),$U20*ABS($S20-E20)/ABS($S20-$T20))))))) -> 11 | W20: 10 | X20: 11 | Y20: 11 | Z20: 11 | AA20: 10 | AB20: 5 | AC20: 11 | AD20: 10 | AE20: 5 | AF20: 5 | AG20: 10 | AK20: Valorar acciones de estímulo
B21: E4.6 | C21: I- | D21: Nº de recomendaciones al director de obra/mes | E21: 8 | F21: 4 | G21: 7 | H21: 7 | I21: 8 | J21: 6 | K21: 5 | L21: 5 | M21: 7 | N21: 4 | O21: 5 | P21: 7 | Q21: (0, (PEM/(Nº meses*20000)) | R21: 0 | S21: =IF(E10="","",IF(E9="","",ROUNDUP((E9/(E10*20000)),0))) -> 15 | T21: =IF(E10="","",IF(E9="","",ROUNDUP((R21+1/3*(S21-R21)),0))) -> 5 | U21: 10 | V21: =IF($E$10="","",IF($E$9="","",IF(E21="","",IF(E21<$R21,"ERROR",IF(E21>$S21,"ERROR",IF(E21<=$T21,$U21+(0.2*$U21*ABS(E21-$T21)/ABS($R21-$T21)),$U21*ABS($S21-E21)/ABS($S21-$T21))))))) -> 7 | W21: 10.4 | X21: 8 | Y21: 8 | Z21: 7 | AA21: 9 | AB21: 10 | AC21: 10 | AD21: 8 | AE21: 10.4 | AF21: 10 | AG21: 8 | AK21: Requiere acciones correctoras
B22: E4.7 | C22: I- | D22: Nº de recomendaciones del Coordinador de seguridad/mes | E22: 1 | F22: 2 | G22: 3 | H22: 2 | I22: 3 | J22: 2 | K22: 1 | L22: 0 | M22: 0 | N22: 1 | O22: 0 | P22: 0 | Q22: (0, (PEM/(Nº meses*300000)) | R22: 0 | S22: =IF(E10="","",IF(E9="","",ROUNDUP((E9/(E10*50000)),0))) -> 6 | T22: =IF(E10="","",IF(E9="","",ROUNDUP((R22+1/3*(S22-R22)),0))) -> 2 | U22: 10 | V22: =IF($E$10="","",IF($E$9="","",IF(E22="","",IF(E22<$R22,"ERROR",IF(E22>$S22,"ERROR",IF(E22<=$T22,$U22+(0.2*$U22*ABS(E22-$T22)/ABS($R22-$T22)),$U22*ABS($S22-E22)/ABS($S22-$T22))))))) -> 11 | W22: 10 | X22: 7.5 | Y22: 10 | Z22: 7.5 | AA22: 10 | AB22: 11 | AC22: 12 | AD22: 12 | AE22: 11 | AF22: 12 | AG22: 12 | AK22: Valorar acciones de estímulo
B23: E4.8 | C23: I+ | D23: Nº de visitas/reuniones de obra/mes | E23: 1 | F23: 6 | G23: 5 | H23: 6 | I23: 1 | J23: 6 | K23: 4 | L23: 4 | M23: 4 | N23: 4 | O23: 5 | P23: 6 | Q23: (1, (PEM/(Nº meses*75000)) | R23: 1 | S23: =IF(E10="","",IF(E9="","",ROUNDUP((E9/(E10*50000)),0))) -> 6 | T23: =IF(E10="","",IF(E9="","",ROUNDUP((R23+2/3*(S23-R23)),0))) -> 5 | U23: 10 | V23: =IF($E$10="","",IF($E$9="","",IF(E23="","",IF(E23<$R23,"ERROR",IF(E23>$S23,"ERROR",IF(E23>=$T23,$U23+(0.2*$U23*ABS(E23-$T23)/ABS($S23-$T23)),$U23*ABS($R23-E23)/ABS($R23-$T23))))))) -> 0 | W23: =IF($E$10="","",IF($E$9="","",IF(F23="","",IF(F23<$R23,"ERROR",IF(F23>$S23,"ERROR",IF(F23>=$T23,$U23+(0.2*$U23*ABS(F23-$T23)/ABS($S23-$T23)),$U23*ABS($R23-F23)/ABS($R23-$T23))))))) -> 12 | X23: 10 | Y23: 12 | Z23: 0 | AA23: 12 | AB23: 7.5 | AC23: 7.5 | AD23: 7.5 | AE23: 7.5 | AF23: 10 | AG23: 12 | AK23: Requiere acciones correctoras
B24: E4.9 | C24: I- | D24: Nº de comunicaciones fuera de plazo/mes | E24: 2 | F24: 1 | G24: 1 | H24: 1 | I24: 0 | J24: 0 | K24: 1 | L24: 0 | M24: 0 | N24: 0 | O24: 0 | P24: 0 | Q24: (0, 5) | R24: 0 | S24: 5 | T24: 4 | U24: 10 | V24: =IF(E24="","",IF(E24<$R24,"ERROR",IF(E24>$S24,"ERROR",IF(E24<=$T24,$U24+(0.2*$U24*ABS(E24-$T24)/ABS($R24-$T24)),$U24*ABS($S24-E24)/ABS($S24-$T24))))) -> 11 | W24: =IF(F24="","",IF(F24<$R24,"ERROR",IF(F24>$S24,"ERROR",IF(F24<=$T24,$U24+(0.2*$U24*ABS(F24-$T24)/ABS($R24-$T24)),$U24*ABS($S24-F24)/ABS($S24-$T24))))) -> 11.5 | X24: 11.5 | Y24: 11.5 | Z24: 12 | AA24: 12 | AB24: 11.5 | AC24: 12 | AD24: 12 | AE24: 12 | AF24: 12 | AG24: 12 | AK24: Valorar acciones de estímulo
B25: E4.10 | C25: I+ | D25: Nº de informes de control para el promotor/mes | E25: 2 | F25: 4 | G25: 4 | H25: 4 | I25: 4 | J25: 4 | K25: 4 | L25: 4 | M25: 4 | N25: 5 | O25: 4 | P25: 6 | Q25: (0, (PEM/(Nº meses*150000)) | R25: 1 | S25: =IF(E10="","",IF(E9="","",ROUNDUP((E9/(E10*50000)),0))) -> 6 | T25: 1 | U25: 20 | V25: =IF($E$10="","",IF($E$9="","",IF(E25="","",IF(E25<$R25,"ERROR",IF(E25>$S25,"ERROR",IF(E25>=$T25,$U25+(0.2*$U25*ABS(E25-$T25)/ABS($S25-$T25)),$U25*ABS($R25-E25)/ABS($R25-$T25))))))) -> 20.8 | W25: =IF($E$10="","",IF($E$9="","",IF(F25="","",IF(F25<$R25,"ERROR",IF(F25>$S25,"ERROR",IF(F25>=$T25,$U25+(0.2*$U25*ABS(F25-$T25)/ABS($S25-$T25)),$U25*ABS($R25-F25)/ABS($R25-$T25))))))) -> 22.4 | X25: 22.4 | Y25: 22.4 | Z25: 22.4 | AA25: 22.4 | AB25: 22.4 | AC25: 22.4 | AD25: 22.4 | AE25: 23.2 | AF25: 22.4 | AG25: 24 | AK25: Valorar acciones de estímulo
D26: IC´s PARCIALES DELGRUPO E4 | U26: =SUM(U16:U25) -> 100 | V26: =SUM(V16:V25) -> 83.08846154 | W26: =SUM(W16:W25) -> 100.7294872 | X26: 99.67564103 | Y26: 97.86794872 | Z26: 88.38717949 | AA26: 102.6564103 | AB26: 90.70128205 | AC26: 100.0987179 | AD26: 97.36794872 | AE26: 91.25384615 | AF26: 95.15641026 | AG26: 107.0357143 | AH26: 10 | AI26: =$AH26*AG28/100 -> 9.616825397 | AJ26: =AI26/AH26 -> 0.9616825397
D28: CONTRIBUCIÓN DEL GRUPO E4 AL IC | AG28: =(SUM(V26:AG26))/12 -> 96.16825397

Sheet E5 LABORATORIO DE ENSAYOS
D2: ÍNDICE DE CALIDAD DE LAS CONSTRUCCIONES
D5: PROYECTO/OBRA
D7: DATOS OBLIGATORIOS | V7: LEYENDA
D8: REF: | E8: OBRA A | W8: Colaboración positiva al IC
D9: PRESUPUESTO DE EJECUCIÓN MATERIAL (PEM) en Euros | E9: 3450728.79 | W9: Colaboración neutra al IC
D10: TIEMPO DE DURACIÓN en meses | E10: 12 | W10: Colaboración negativa al IC
D11: COMPLEJIDAD ORGANIZATIVA DE LA OBRA | E11: 1
D13: FASE EJECUCIÓN
D15: E5 INDICADORES LABORATORIO DE ENSAYOS | E15: MES1 | F15: MES 2 | G15: MES 3 | H15: MES 4 | I15: MES 5 | J15: MES 6 | K15: MES 7 | L15: MES 8 | M15: MES 9 | N15: MES 10 | O15: MES 11 | P15: MES 12 | Q15: INTERVALO | R15: MIN | S15: MAX | T15: ESTÁNDAR | U15: Peso del indicador | V15: Preal MES 1 | W15: Preal MES 2 | X15: Preal MES 3 | Y15: Preal MES 4 | Z15: Preal MES 5 | AA15: Preal MES 6 | AB15: Preal MES 7 | AC15: PrealL MES 8 | AD15: Preal MES 9 | AE15: Preal Mes 10 | AF15: Preal Mes 11 | AG15: Preal Mes 12 | AH15: Peso del grupo E5 | AI15: Peso real del grupo E5 | AJ15: Desviación del IC | AK15: ACCIONES
B16: E5.1 | C16: I- | D16: Nº de no conformidades detectadas/mes (*) | E16: 18 | F16: 15 | G16: 10 | H16: 13 | I16: 12 | J16: 11 | K16: 13 | L16: 14 | M16: 13 | N16: 12 | O16: 11 | P16: 6 | Q16: (0, (PEM/(Nº meses*1500))) | R16: 0 | S16: =IF(E10="","",IF(E9="","",ROUNDUP((E9/(E10*15000)),0))) -> 20 | T16: =IF(E10="","",IF(E9="","",ROUNDUP((R16+1/3*(S16-R16)),0))) -> 7 | U16: 10 | V16: =IF($E10="","",IF($E9="","",IF(E16="","",IF(E16<$R16,"ERROR",IF(E16>$S16,"ERROR",IF(E16<=$T16,$U16+(0.2*$U16*ABS(E16-$T16)/ABS($R16-$T16)),$U16*ABS($S16-E16)/ABS($S16-$T16))))))) -> 1.538461538 | W16: =IF($E10="","",IF($E9="","",IF(F16="","",IF(F16<$R16,"ERROR",IF(F16>$S16,"ERROR",IF(F16<=$T16,$U16+(0.2*$U16*ABS(F16-$T16)/ABS($R16-$T16)),$U16*ABS($S16-F16)/ABS($S16-$T16))))))) -> 3.846153846 | X16: =IF($E10="","",IF($E9="","",IF(G16="","",IF(G16<$R16,"ERROR",IF(G16>$S16,"ERROR",IF(G16<=$T16,$U16+(0.2*$U16*ABS(G16-$T16)/ABS($R16-$T16)),$U16*ABS($S16-G16)/ABS($S16-$T16))))))) -> 7.692307692 | Y16: =IF($E10="","",IF($E9="","",IF(H16="","",IF(H16<$R16,"ERROR",IF(H16>$S16,"ERROR",IF(H16<=$T16,$U16+(0.2*$U16*ABS(H16-$T16)/ABS($R16-$T16)),$U16*ABS($S16-H16)/ABS($S16-$T16))))))) -> 5.384615385 | Z16: 6.153846154 | AA16: 6.923076923 | AB16: 5.384615385 | AC16: 4.615384615 | AD16: 5.384615385 | AE16: 6.153846154 | AF16: 6.923076923 | AG16: 10.28571429 | AK16: =IF(V16="","",IF(V16<$U16,"Requiere acciones correctoras",IF(V16>$U16,"Valorar acciones de estímulo",IF(V16=$U16,"No requiere acciones")))) -> Requiere acciones correctoras
B17: E5.2 | C17: I- | D17: Nº de ensayos repetidos/mes (*) | E17: 6 | F17: 7 | G17: 5 | H17: 6 | I17: 5 | J17: 2 | K17: 3 | L17: 1 | M17: 0 | N17: 0 | O17: 0 | P17: 0 | Q17: (0, No conformidades/3) | R17: 0 | S17: =IF(E10="","",IF(E9="","",ROUNDUP((S16/3),0))) -> 7 | T17: =IF(E10="","",IF(E9="","",ROUNDUP((R17+1/3*(S17-R17)),0))) -> 3 | U17: 20 | V17: =IF($E10="","",IF($E9="","",IF(E17="","",IF(E17<$R17,"ERROR",IF(E17>$S17,"ERROR",IF(E17<=$T17,$U17+(0.2*$U17*ABS(E17-$T17)/ABS($R17-$T17)),$U17*ABS($S17-E17)/ABS($S17-$T17))))))) -> 5 | W17: =IF($E10="","",IF($E9="","",IF(F17="","",IF(F17<$R17,"ERROR",IF(F17>$S17,"ERROR",IF(F17<=$T17,$U17+(0.2*$U17*ABS(F17-$T17)/ABS($R17-$T17)),$U17*ABS($S17-F17)/ABS($S17-$T17))))))) -> 0 | X17: 10 | Y17: 5 | Z17: 10 | AA17: 21.33333333 | AB17: 20 | AC17: 22.66666667 | AD17: 24 | AE17: 24 | AF17: 24 | AG17: 24 | AK17: Requiere acciones correctoras
B18: E5.3 | C18: I- | D18: Nº de comunicaciones de anomalías al director de obra/mes | E18: 5 | F18: 4 | G18: 4 | H18: 3 | I18: 8 | J18: 12 | K18: 10 | L18: 6 | M18: 1 | N18: 3 | O18: 2 | P18: 1 | Q18: (0, (PEM/(Nº meses*20000)) | R18: 0 | S18: 22 | T18: =ROUNDUP((R18+1/3*(S18-R18)),0) -> 8 | U18: 15 | V18: =IF(E18="","",IF(E18<$R18,"ERROR",IF(E18>$S18,"ERROR",IF(E18<=$T18,$U18+(0.2*$U18*ABS(E18-$T18)/ABS($R18-$T18)),$U18*ABS($S18-E18)/ABS($S18-$T18))))) -> 16.125 | W18: =IF(F18="","",IF(F18<$R18,"ERROR",IF(F18>$S18,"ERROR",IF(F18<=$T18,$U18+(0.2*$U18*ABS(F18-$T18)/ABS($R18-$T18)),$U18*ABS($S18-F18)/ABS($S18-$T18))))) -> 16.5 | X18: 16.5 | Y18: 16.875 | Z18: 15 | AA18: 10.71428571 | AB18: 12.85714286 | AC18: 15.75 | AD18: 17.625 | AE18: 16.875 | AF18: 17.25 | AG18: 17.625 | AK18: Valorar acciones de estímulo
B19: E5.4 | C19: I- | D19: Nº de recomendaciones del Coordinador de seguridad/mes | E19: 1 | F19: 2 | G19: 2 | H19: 2 | I19: 1 | J19: 1 | K19: 1 | L19: 0 | M19: 0 | N19: 1 | O19: 0 | P19: 0 | Q19: (0, (PEM/(Nº meses*300000)) | R19: 0 | S19: =IF(E10="","",ROUNDUP((E9/(E10*300000)),0)+1) -> 2 | T19: =IF(E10="","",ROUNDUP((R19+1/3*(S19-R19)),0)) -> 1 | U19: 5 | V19: =IF($E10="","",IF($E9="","",IF(E19="","",IF(E19<$R19,"ERROR",IF(E19>$S19,"ERROR",IF(E19<=$T19,$U19+(0.2*$U19*ABS(E19-$T19)/ABS($R19-$T19)),$U19*ABS($S19-E19)/ABS($S19-$T19))))))) -> 5 | W19: =IF($E10="","",IF($E9="","",IF(F19="","",IF(F19<$R19,"ERROR",IF(F19>$S19,"ERROR",IF(F19<=$T19,$U19+(0.2*$U19*ABS(F19-$T19)/ABS($R19-$T19)),$U19*ABS($S19-F19)/ABS($S19-$T19))))))) -> 0 | X19: 0 | Y19: 0 | Z19: 5 | AA19: 5 | AB19: 5 | AC19: 6 | AD19: 6 | AE19: 5 | AF19: 6 | AG19: 6 | AK19: No requiere acciones
B20: E5.5 | C20: I- | D20: % Ajuste en plazo de la aplicación del Plan de Control/mes | E20: 0.9 | F20: 0.95 | G20: 0.9 | H20: 0.95 | I20: 1.1 | J20: 1 | K20: 1 | L20: 1 | M20: 1.15 | N20: 1 | O20: 1 | P20: 1 | Q20: (75%PEM CONTROL, 125% PEM Control) | R20: 0.75 | S20: 1.25 | T20: 1 | U20: 15 | V20: =IF(E20="","",IF(E20<$R20,"ERROR",IF(E20>$S20,"ERROR",IF(E20<=$T20,$U20+(0.2*$U20*ABS(E20-$T20)/ABS($R20-$T20)),$U20*ABS($S20-E20)/ABS($S20-$T20))))) -> 16.2 | W20: =IF(F20="","",IF(F20<$R20,"ERROR",IF(F20>$S20,"ERROR",IF(F20<=$T20,$U20+(0.2*$U20*ABS(F20-$T20)/ABS($R20-$T20)),$U20*ABS($S20-F20)/ABS($S20-$T20))))) -> 15.6 | X20: 16.2 | Y20: 15.6 | Z20: 9 | AA20: 15 | AB20: 15 | AC20: 15 | AD20: 6 | AE20: 15 | AF20: 15 | AG20: 15 | AK20: Valorar acciones de estímulo
B21: E5.6 | C21: I- | D21: % Ajuste en presupuesto de la aplicación del Plan de Control/mes | E21: 0.9 | F21: 0.95 | G21: 0.9 | H21: 0.95 | I21: 1.1 | J21: 1 | K21: 1 | L21: 1 | M21: 1.15 | N21: 1 | O21: 1 | P21: 1 | Q21: (75%PEM CONTROL, 125% PEM Control) | R21: 0.75 | S21: 1.25 | T21: 1 | U21: 15 | V21: =IF(E21="","",IF(E21<$R21,"ERROR",IF(E21>$S21,"ERROR",IF(E21<=$T21,$U21+(0.2*$U21*ABS(E21-$T21)/ABS($R21-$T21)),$U21*ABS($S21-E21)/ABS($S21-$T21))))) -> 16.2 | W21: 15.6 | X21: 16.2 | Y21: 15.6 | Z21: 9 | AA21: 15 | AB21: 15 | AC21: 15 | AD21: 6 | AE21: 15 | AF21: 15 | AG21: 15 | AK21: Valorar acciones de estímulo
B22: E5.7 | C22: I+ | D22: Nº de visitas/reuniones de obra/mes | E22: 3 | F22: 6 | G22: 5 | H22: 6 | I22: 1 | J22: 6 | K22: 4 | L22: 4 | M22: 4 | N22: 4 | O22: 5 | P22: 6 | Q22: (1, (PEM/(Nº meses*75000)) | R22: 1 | S22: =IF($E$10="","",IF($E$9="","",ROUNDUP(($E$9/($E$10*50000)),0))) -> 6 | T22: =ROUNDUP((R22+2/3*(S22-R22)),0) -> 5 | U22: 10 | V22: =IF(E22="","",IF(E22<$R22,"ERROR",IF(E22>$S22,"ERROR",IF(E22>=$T22,$U22+(0.2*$U22*ABS(E22-$T22)/ABS($S22-$T22)),$U22*ABS($R22-E22)/ABS($R22-$T22))))) -> 5 | W22: =IF(F22="","",IF(F22<$R22,"ERROR",IF(F22>$S22,"ERROR",IF(F22>=$T22,$U22+(0.2*$U22*ABS(F22-$T22)/ABS($S22-$T22)),$U22*ABS($R22-F22)/ABS($R22-$T22))))) -> 12 | X22: 10 | Y22: 12 | Z22: 0 | AA22: 12 | AB22: 7.5 | AC22: 7.5 | AD22: 7.5 | AE22: 7.5 | AF22: 10 | AG22: 12 | AK22: Requiere acciones correctoras
B23: E5.8 | C23: I+ | D23: Nº de informes de control para el promotor/mes | E23: 1 | F23: 3 | G23: 4 | H23: 3 | I23: 4 | J23: 4 | K23: 2 | L23: 2 | M23: 4 | N23: 5 | O23: 4 | P23: 6 | Q23: (0, (PEM/(Nº meses*150000)) | R23: 1 | S23: =IF($E$10="","",IF($E$9="","",ROUNDUP(($E$9/($E$10*50000)),0))) -> 6 | T23: 1 | U23: 10 | V23: =IF($E10="","",IF($E9="","",IF(E23="","",IF(E23<$R23,"ERROR",IF(E23>$S23,"ERROR",IF(E23>=$T23,$U23+(0.2*$U23*ABS(E23-$T23)/ABS($S23-$T23)),$U23*ABS($R23-E23)/ABS($R23-$T23))))))) -> 10 | W23: =IF($E10="","",IF($E9="","",IF(F23="","",IF(F23<$R23,"ERROR",IF(F23>$S23,"ERROR",IF(F23>=$T23,$U23+(0.2*$U23*ABS(F23-$T23)/ABS($S23-$T23)),$U23*ABS($R23-F23)/ABS($R23-$T23))))))) -> 10.8 | X23: 11.2 | Y23: 10.8 | Z23: 11.2 | AA23: 11.2 | AB23: 10.4 | AC23: 10.4 | AD23: 11.2 | AE23: 11.6 | AF23: 11.2 | AG23: 12 | AK23: No requiere acciones
D24: IC´s PARCIALES DELGRUPO E5 | U24: =SUM(U16:U23) -> 100 | V24: =SUM(V16:V23) -> 75.06346154 | W24: =SUM(W16:W23) -> 74.34615385 | X24: 87.79230769 | Y24: 81.25961538 | Z24: 65.35384615 | AA24: 97.17069597 | AB24: 91.14175824 | AC24: 96.93205128 | AD24: 83.70961538 | AE24: 101.1288462 | AF24: 105.3730769 | AG24: 111.9107143 | AH24: 10 | AI24: =$AH24*AG26/100 -> 8.926517857 | AJ24: =AI24/AH24 -> 0.8926517857
D26: CONTRIBUCIÓN DEL GRUPO E5 AL IC | AG26: =(SUM(V24:AG24))/12 -> 89.26517857

Sheet E6 EMPRESA CONSTRUCTORA
D2: ÍNDICE DE CALIDAD DE LAS CONSTRUCCIONES
D5: PROYECTO/OBRA
D7: DATOS OBLIGATORIOS | V7: LEYENDA
D8: REF: | E8: OBRA A | W8: Colaboración positiva al IC
D9: PRESUPUESTO DE EJECUCIÓN MATERIAL (PEM) en Euros | E9: 3450728.79 | W9: Colaboración neutra al IC
D10: TIEMPO DE DURACIÓN en meses | E10: 12 | W10: Colaboración negativa al IC
D11: COMPLEJIDAD ORGANIZATIVA DE LA OBRA | E11: 1
D13: FASE EJECUCIÓN
D15: E6 INDICADORES EMPRESA CONSTRUCTORA | E15: MES 1 | F15: MES 2 | G15: MES 3 | H15: MES 4 | I15: MES 5 | J15: MES 6 | K15: MES 7 | L15: MES 8 | M15: MES 9 | N15: MES 10 | O15: MES 11 | P15: MES 12 | Q15: INTERVALO | R15: MIN | S15: MAX | T15: ESTÁNDAR | U15: Peso del indicador | V15: Preal MES 1 | W15: Preal MES 2 | X15: Preal MES 3 | Y15: Preal MES 4 | Z15: Preal MES 5 | AA15: Preal MES 6 | AB15: Preal MES 7 | AC15: PrealL MES 8 | AD15: Preal MES 9 | AE15: Preal Mes 10 | AF15: Preal Mes 11 | AG15: Preal Mes 12 | AH15: Peso del grupo E6 | AI15: Peso real del grupo E6 | AJ15: Desviación del IC | AK15: ACCIONES
D16: DATO: Nº Materiales recibidos/mes= Total mat | E16: 10
B17: E6.1 | C17: I+ | D17: Nº de instrucciones de modificación Libro Órdenes/mes | E17: 3 | F17: 3 | G17: 2 | H17: 2 | I17: 3 | J17: 4 | K17: 3 | L17: 2 | M17: 1 | N17: 2 | O17: 3 | P17: 2 | Q17: (0, (PEM/(Nº meses*150000)) | R17: 0 | S17: =IF(E10="","",IF(E9="","",ROUNDUP((E9/(E10*100000)),0))) -> 3 | T17: =IF(E10="","",IF(E9="","",ROUNDUP((R17+2/3*(S17-R17)),0))) -> 2 | U17: 5 | V17: =IF(E17="","",IF(E17<$R17,"ERROR",IF(E17>$S17,"ERROR",IF(E17>=$T17,$U17+(0.2*$U17*ABS(E17-$T17)/ABS($S17-$T17)),$U17*ABS($R17-E17)/ABS($R17-$T17))))) -> 6 | W17: =IF(F17="","",IF(F17<$R17,"ERROR",IF(F17>$S17,"ERROR",IF(F17>=$T17,$U17+(0.2*$U17*ABS(F17-$T17)/ABS($S17-$T17)),$U17*ABS($R17-F17)/ABS($R17-$T17))))) -> 6 | X17: 5 | Y17: 5 | Z17: 6 | AA17: ERROR | AB17: 6 | AC17: 5 | AD17: 2.5 | AE17: 5 | AF17: 6 | AG17: 5 | AK17: =IF(V17="","",IF(V17<$U17,"Requiere acciones correctoras",IF(V17>$U17,"Valorar acciones de estímulo",IF(V17=$U17,"No requiere acciones")))) -> Valorar acciones de estímulo
B18: E6.2 | C18: I- | D18: % Ajuste en plazo de ejecución | E18: 0.9 | F18: 0.95 | G18: 0.9 | H18: 0.95 | I18: 1 | J18: 0.95 | K18: 0.9 | L18: 1 | M18: 0.9 | N18: 0.95 | O18: 0.9 | P18: 0.9 | Q18: (75%PEM CONTROL, 125% PEM Control) | R18: 0.75 | S18: 1.25 | T18: 1 | U18: 20 | V18: =IF($E$10="","",IF($E$9="","",IF(E18="","",IF(E18<$R18,"ERROR",IF(E18>$S18,"ERROR",IF(E18<=$T18,$U18+(0.2*$U18*ABS(E18-$T18)/ABS($R18-$T18)),$U18*ABS($S18-E18)/ABS($S18-$T18))))))) -> 21.6 | W18: =IF(F18="","",IF(F18<$R18,"ERROR",IF(F18>$S18,"ERROR",IF(F18<=$T18,$U18+(0.2*$U18*ABS(F18-$T18)/ABS($R18-$T18)),$U18*ABS($S18-F18)/ABS($S18-$T18))))) -> 20.8 | X18: 21.6 | Y18: 20.8 | Z18: 20 | AA18: 20.8 | AB18: 21.6 | AC18: 20 | AD18: 21.6 | AE18: 20.8 | AF18: 21.6 | AG18: 21.6 | AK18: =IF(V18<$U18,"Requiere acciones correctoras",IF(V18>$U18,"Valorar acciones de estímulo",IF(V18=$U18,"No requiere acciones"))) -> Valorar acciones de estímulo
B19: E6.3 | C19: I- | D19: % Ajuste presupuesto sobre el total anual | E19: 0.9 | F19: 0.95 | G19: 0.9 | H19: 0.95 | I19: 1.1 | J19: 0.95 | K19: 1 | L19: 1 | M19: 1.15 | N19: 1 | O19: 1 | P19: 1 | Q19: (75%PEM CONTROL, 125% PEM Control) | R19: 0.75 | S19: 1.25 | T19: 1 | U19: 40 | V19: =IF($E$10="","",IF($E$9="","",IF(E19="","",IF(E19<$R19,"ERROR",IF(E19>$S19,"ERROR",IF(E19<=$T19,$U19+(0.2*$U19*ABS(E19-$T19)/ABS($R19-$T19)),$U19*ABS($S19-E19)/ABS($S19-$T19))))))) -> 43.2 | W19: 41.6 | X19: 43.2 | Y19: 41.6 | Z19: 24 | AA19: 41.6 | AB19: 40 | AC19: 40 | AD19: 16 | AE19: 40 | AF19: 40 | AG19: 40 | AK19: Valorar acciones de estímulo
B20: E6.4 | C20: I- | D20: Nº de instrucciones aspectos seguridad laboral/mes | E20: 2 | F20: 3 | G20: 4 | H20: 2 | I20: 3 | J20: 4 | K20: 2 | L20: 3 | M20: 1 | N20: 3 | O20: 2 | P20: 2 | Q20: (0, (PEM/(Nº meses*150000)) | R20: 0 | S20: =IF(E10="","",IF(E9="","",ROUNDUP((E9/(E10*50000)),0))) -> 6 | T20: =IF(E10="","",IF(E9="","",ROUNDUP((R20+1/3*(S20-R20)),0))) -> 2 | U20: 10 | V20: =IF($E$10="","",IF($E$9="","",IF(E20="","",IF(E20<$R20,"ERROR",IF(E20>$S20,"ERROR",IF(E20<=$T20,$U20+(0.2*$U20*ABS(E20-$T20)/ABS($R20-$T20)),$U20*ABS($S20-E20)/ABS($S20-$T20))))))) -> 10 | W20: =IF($E$10="","",IF($E$9="","",IF(F20="","",IF(F20<$R20,"ERROR",IF(F20>$S20,"ERROR",IF(F20<=$T20,$U20+(0.2*$U20*ABS(F20-$T20)/ABS($R20-$T20)),$U20*ABS($S20-F20)/ABS($S20-$T20))))))) -> 7.5 | X20: 5 | Y20: 10 | Z20: 7.5 | AA20: 5 | AB20: 10 | AC20: 7.5 | AD20: 11 | AE20: 7.5 | AF20: 10 | AG20: 10 | AK20: =IF(V20="","",IF(V20<$U20,"Requiere acciones correctoras",IF(V20>$U20,"Valorar acciones de estímulo",IF(V20=$U20,"No requiere acciones")))) -> No requiere acciones
B21: e6.5 | C21: I- | D21: Nº de recomendaciones del Coordinador de seguridad/mes | E21: 3 | F21: 4 | G21: 4 | H21: 2 | I21: 5 | J21: 3 | K21: 3 | L21: 2 | M21: 2 | N21: 3 | O21: 2 | P21: 3 | Q21: (0, (PEM/(Nº meses*100000)) | R21: 0 | S21: =IF(E10="","",IF(E9="","",ROUNDUP((E9/(E10*50000)),0))) -> 6 | T21: =IF(E10="","",IF(E9="","",ROUNDUP((R21+1/3*(S21-R21)),0))) -> 2 | U21: 10 | V21: =IF($E$10="","",IF($E$9="","",IF(E21="","",IF(E21<$R21,"ERROR",IF(E21>$S21,"ERROR",IF(E21<=$T21,$U21+(0.2*$U21*ABS(E21-$T21)/ABS($R21-$T21)),$U21*ABS($S21-E21)/ABS($S21-$T21))))))) -> 7.5 | W21: 5 | X21: 5 | Y21: 10 | Z21: 2.5 | AA21: 7.5 | AB21: 7.5 | AC21: 10 | AD21: 10 | AE21: 7.5 | AF21: 10 | AG21: 7.5 | AK21: =IF(V21="","",IF(V21<$U21,"Requiere acciones correctoras",IF(V21>$U21,"Valorar acciones de estímulo",IF(V21=$U21,"No requiere acciones")))) -> Requiere acciones correctoras
B22: E6.6 | C22: I+ | D22: Nº de recomendaciones de la Asistencia Técnica/mes | E22: 18 | F22: 20 | G22: 15 | H22: 17 | I22: 12 | J22: 12 | K22: 10 | L22: 10 | M22: 8 | N22: 10 | O22: 20 | P22: 3 | Q22: (0, (PEM/(Nº meses*25000)) | R22: 0 | S22: =IF(E10="","",IF(E9="","",ROUNDUP((E9/(E10*10000)),0))) -> 29 | T22: =IF(E10="","",IF(E9="","",ROUNDUP((R22+2/3*(S22-R22)),0))) -> 20 | U22: 5 | V22: =IF($E$10="","",IF($E$9="","",IF(E22="","",IF(E22<$R22,"ERROR",IF(E22>$S22,"ERROR",IF(E22>=$T22,$U22+(0.2*$U22*ABS(E22-$T22)/ABS($S22-$T22)),$U22*ABS($R22-E22)/ABS($R22-$T22))))))) -> 4.5 | W22: =IF($E$10="","",IF($E$9="","",IF(F22="","",IF(F22<$R22,"ERROR",IF(F22>$S22,"ERROR",IF(F22>=$T22,$U22+(0.2*$U22*ABS(F22-$T22)/ABS($S22-$T22)),$U22*ABS($R22-F22)/ABS($R22-$T22))))))) -> 5 | X22: 3.75 | Y22: 4.25 | Z22: 3 | AA22: 3 | AB22: 2.5 | AC22: 2.5 | AD22: 2 | AE22: 2.5 | AF22: 5 | AG22: 0.75 | AK22: =IF(V22="","",IF(V22<$U22,"Requiere acciones correctoras",IF(V22>$U22,"Valorar acciones de estímulo",IF(V22=$U22,"No requiere acciones")))) -> Requiere acciones correctoras
B23: E6.7 | C23: I- | D23: Nº de materiales rechazados/mes por cualquier causa | E23: 2 | F23: 6 | G23: 4 | H23: 5 | I23: 4 | J23: 7 | K23: 1 | L23: 5 | M23: 3 | N23: 2 | O23: 1 | P23: 0 | Q23: (0, Total mat) | R23: 0 | S23: =E16 -> 10 | T23: =ROUNDUP((R23+1/3*(S23-R23)),0) -> 4 | U23: 10 | V23: =IF($E$10="","",IF($E$9="","",IF(E23="","",IF(E23<$R23,"ERROR",IF(E23>$S23,"ERROR",IF(E23<=$T23,$U23+(0.2*$U23*ABS(E23-$T23)/ABS($R23-$T23)),$U23*ABS($S23-E23)/ABS($S23-$T23))))))) -> 11 | W23: =IF(F23="","",IF(F23<$R23,"ERROR",IF(F23>$S23,"ERROR",IF(F23<=$T23,$U23+(0.2*$U23*ABS(F23-$T23)/ABS($R23-$T23)),$U23*ABS($S23-F23)/ABS($S23-$T23))))) -> 6.666666667 | X23: 10 | Y23: 8.333333333 | Z23: 10 | AA23: 5 | AB23: 11.5 | AC23: 8.333333333 | AD23: 10.5 | AE23: 11 | AF23: 11.5 | AG23: 12 | AK23: Valorar acciones de estímulo
D24: IC´s PARCIALES DELGRUPO E6 | U24: =SUM(U17:U23) -> 100 | V24: =SUM(V17:V23) -> 103.8 | W24: =SUM(W16:W23) -> 92.56666667 | X24: 93.55 | Y24: 99.98333333 | Z24: 73 | AA24: 82.9 | AB24: 99.1 | AC24: 93.33333333 | AD24: 73.6 | AE24: 94.3 | AF24: 104.1 | AG24: 96.85 | AH24: 20 | AI24: =$AH24*AG26/100 -> 18.45138889 | AJ24: =AI24/AH24 -> 0.9225694444
D26: CONTRIBUCIÓN DEL GRUPO E6 AL IC | AG26: =(SUM(V24:AG24))/12 -> 92.25694444

Sheet IC OBRA A
C2: ÍNDICE DE CALIDAD DE LAS CONSTRUCCIONES
C5: PROYECTO/OBRA
C7: DATOS OBLIGATORIOS
C8: REF: | D8: OBRA A
C9: PRESUPUESTO DE EJECUCIÓN MATERIAL (PEM) en Euros | D9: 3450728.79
C10: TIEMPO DE DURACIÓN en meses | D10: 12
C11: COMPLEJIDAD ORGANIZATIVA DE LA OBRA | D11: 1
E12: IC parcial MES 1 | F12: IC parcial MES 2 | G12: IC parcial MES 3 | H12: IC parcial MES 4 | I12: IC parcial MES 5 | J12: IC parcial MES 6 | K12: IC parcial MES 7 | L12: IC parcial MES 8 | M12: IC parcial MES 9 | N12: IC parcial MES 10 | O12: IC parcial MES 11 | P12: IC parcial MES 12 | Q12: IC parcial | R12: Peso del grupo | S12: Peso real del grupo
C13: FASE PROYECTO
C15: P1 INDICADORES PROYECTISTA | E15: ='P1 P2 PROYECTO'!$K$22 -> 70.06666667 | Q15: ='P1 P2 PROYECTO'!$K$22 -> 70.06666667 | R15: ='P1 P2 PROYECTO'!$L$22 -> 20
C16: P2 INDICADORES SUPERVISORES PROYECTO | E16: ='P1 P2 PROYECTO'!$K$28 -> 27.6 | Q16: ='P1 P2 PROYECTO'!$K$28 -> 27.6 | R16: ='P1 P2 PROYECTO'!$L$28 -> 5
C17: PESO INDICADORES DE PROYECTO | E17: =E15+E16 -> 97.66666667 | Q17: =Q15+Q16 -> 97.66666667 | R17: =R15+R16 -> 25 | S17: =$R17*Q17/100 -> 24.41666667
C19: FASE EJECUCIÓN
C21: E1 INDICADORES SUPERVISORES EJECUCIÓN | E21: ='E1 SUPERVISORES EJECUCION'!V26 -> 101.0660257 | F21: ='E1 SUPERVISORES EJECUCION'!W26 -> 94.30113536 | G21: ='E1 SUPERVISORES EJECUCION'!X26 -> 80.19599097 | H21: ='E1 SUPERVISORES EJECUCION'!Y26 -> 96.61583851 | I21: ='E1 SUPERVISORES EJECUCION'!Z26 -> 83.32106625 | J21: ='E1 SUPERVISORES EJECUCION'!AA26 -> 69.79477226 | K21: ='E1 SUPERVISORES EJECUCION'!AB26 -> 91.05 | L21: ='E1 SUPERVISORES EJECUCION'!AC26 -> 74.7206243 | M21: ='E1 SUPERVISORES EJECUCION'!AD26 -> 89.52562112 | N21: ='E1 SUPERVISORES EJECUCION'!AE26 -> 79.03581781 | O21: ='E1 SUPERVISORES EJECUCION'!AF26 -> 105.3765528 | P21: ='E1 SUPERVISORES EJECUCION'!AG26 -> 80.1810559 | Q21: =(SUM(E21:P21))/12 -> 87.09870842 | R21: ='E1 SUPERVISORES EJECUCION'!$AH$26 -> 15 | S21: =$R21*Q21/100 -> 13.06480626
C22: E2 INDICADORES DIRECTOR OBRA | E22: ='E2 DIRECTOR OBRA'!V26 -> 99.75 | F22: ='E2 DIRECTOR OBRA'!W26 -> 72.82142857 | G22: ='E2 DIRECTOR OBRA'!X26 -> 44.97619048 | H22: ='E2 DIRECTOR OBRA'!Y26 -> 99.53333333 | I22: ='E2 DIRECTOR OBRA'!Z26 -> 78.6 | J22: ='E2 DIRECTOR OBRA'!AA26 -> 74.5 | K22: ='E2 DIRECTOR OBRA'!AB26 -> 66.25 | L22: ='E2 DIRECTOR OBRA'!AC26 -> 89.80701754 | M22: ='E2 DIRECTOR OBRA'!AD26 -> 91.90350877 | N22: ='E2 DIRECTOR OBRA'!AE26 -> 82.08333333 | O22: ='E2 DIRECTOR OBRA'!AF26 -> 88.42105263 | P22: ='E2 DIRECTOR OBRA'!AG26 -> 88.01754386 | Q22: =(SUM(E22:P22))/12 -> 81.38861738 | R22: ='E2 DIRECTOR OBRA'!$AH$26 -> 10 | S22: 8.138861738
C23: E3 INDICADORES DIRECTOR EJECUCIÓN OBRA | E23: ='E3 DIRECTOR EJECUCION'!V26 -> 90.325 | F23: ='E3 DIRECTOR EJECUCION'!W26 -> 92.55 | G23: ='E3 DIRECTOR EJECUCION'!X26 -> 79.78571429 | H23: ='E3 DIRECTOR EJECUCION'!Y26 -> 78.0297619 | I23: ='E3 DIRECTOR EJECUCION'!Z26 -> 91.48571429 | J23: ='E3 DIRECTOR EJECUCION'!AA26 -> 86.76785714 | K23: ='E3 DIRECTOR EJECUCION'!AB26 -> 95.51666667 | L23: ='E3 DIRECTOR EJECUCION'!AC26 -> 71.2797619 | M23: ='E3 DIRECTOR EJECUCION'!AD26 -> 97.58571429 | N23: ='E3 DIRECTOR EJECUCION'!AE26 -> 88.625 | O23: ='E3 DIRECTOR EJECUCION'!AF26 -> 99.20833333 | P23: ='E3 DIRECTOR EJECUCION'!AG26 -> 89.375 | Q23: 88.37787698 | R23: ='E3 DIRECTOR EJECUCION'!$AH$26 -> 10 | S23: 8.837787698
C24: E4 INDICADORES ASISTENCIA TÉCNICA | E24: ='E4 ASISTENCIA TECNICA'!V26 -> 83.08846154 | F24: ='E4 ASISTENCIA TECNICA'!W26 -> 100.7294872 | G24: ='E4 ASISTENCIA TECNICA'!X26 -> 99.67564103 | H24: ='E4 ASISTENCIA TECNICA'!Y26 -> 97.86794872 | I24: ='E4 ASISTENCIA TECNICA'!Z26 -> 88.38717949 | J24: ='E4 ASISTENCIA TECNICA'!AA26 -> 102.6564103 | K24: ='E4 ASISTENCIA TECNICA'!AB26 -> 90.70128205 | L24: ='E4 ASISTENCIA TECNICA'!AC26 -> 100.0987179 | M24: ='E4 ASISTENCIA TECNICA'!AD26 -> 97.36794872 | N24: ='E4 ASISTENCIA TECNICA'!AE26 -> 91.25384615 | O24: ='E4 ASISTENCIA TECNICA'!AF26 -> 95.15641026 | P24: ='E4 ASISTENCIA TECNICA'!AG26 -> 107.0357143 | Q24: 96.16825397 | R24: ='E4 ASISTENCIA TECNICA'!$AH$26 -> 10 | S24: 9.616825397
C25: E5 INDICADORES LABORATORIO DE ENSAYOS | E25: ='E5 LABORATORIO DE ENSAYOS'!V24 -> 75.06346154 | F25: ='E5 LABORATORIO DE ENSAYOS'!W24 -> 74.34615385 | G25: ='E5 LABORATORIO DE ENSAYOS'!X24 -> 87.79230769 | H25: ='E5 LABORATORIO DE ENSAYOS'!Y24 -> 81.25961538 | I25: ='E5 LABORATORIO DE ENSAYOS'!Z24 -> 65.35384615 | J25: ='E5 LABORATORIO DE ENSAYOS'!AA24 -> 97.17069597 | K25: ='E5 LABORATORIO DE ENSAYOS'!AB24 -> 91.14175824 | L25: ='E5 LABORATORIO DE ENSAYOS'!AC24 -> 96.93205128 | M25: ='E5 LABORATORIO DE ENSAYOS'!AD24 -> 83.70961538 | N25: ='E5 LABORATORIO DE ENSAYOS'!AE24 -> 101.1288462 | O25: ='E5 LABORATORIO DE ENSAYOS'!AF24 -> 105.3730769 | P25: ='E5 LABORATORIO DE ENSAYOS'!AG24 -> 111.9107143 | Q25: 89.26517857 | R25: ='E5 LABORATORIO DE ENSAYOS'!$AH$24 -> 10 | S25: 8.926517857
C26: E6 INDICADORES EMPRESA CONSTRUCTORA | E26: ='E6 EMPRESA CONSTRUCTORA'!V24 -> 103.8 | F26: ='E6 EMPRESA CONSTRUCTORA'!W24 -> 92.56666667 | G26: ='E6 EMPRESA CONSTRUCTORA'!X24 -> 93.55 | H26: ='E6 EMPRESA CONSTRUCTORA'!Y24 -> 99.98333333 | I26: ='E6 EMPRESA CONSTRUCTORA'!Z24 -> 73 | J26: ='E6 EMPRESA CONSTRUCTORA'!AA24 -> 82.9 | K26: ='E6 EMPRESA CONSTRUCTORA'!AB24 -> 99.1 | L26: ='E6 EMPRESA CONSTRUCTORA'!AC24 -> 93.33333333 | M26: ='E6 EMPRESA CONSTRUCTORA'!AD24 -> 73.6 | N26: ='E6 EMPRESA CONSTRUCTORA'!AE24 -> 94.3 | O26: ='E6 EMPRESA CONSTRUCTORA'!AF24 -> 104.1 | P26: ='E6 EMPRESA CONSTRUCTORA'!AG24 -> 96.85 | Q26: 92.25694444 | R26: ='E6 EMPRESA CONSTRUCTORA'!$AH$24 -> 20 | S26: 18.45138889
C28: TOTAL PESO INDICADORES | R28: =SUM(R17:R27) -> 100 | S28: =SUM(S17:S27) -> 91.45285451
C31: ÍNDICE DE CALIDAD | S31: =S26+S25+S24+S23+S22+S21+S17 -> 91.45285451
Q33: LEYENDA
Q34: A | R34: Buena calidad
Q35: B | R35: Calidad aceptable
Q36: C | R36: Calidad deficiente
Q37: D | R37: Mala calidad

Sheet ETIQUETA DE CALIDAD
E1: LEYENDA
E2: A | F2: Buena calidad +
E3: B | F3: Buena calidad
E4: C | F4: Calidad aceptable +
E5: D | F5: Calidad aceptable
C9: ETIQUETA DE CALIDAD
C10: Obra: | D10: ='[1]DATOS GENERALES'!$E$8 -> Obra A | E10: IC= | F10: ='IC OBRA A'!$S$31 -> 91.45285451
C13: =IF((90<VALUE($F$10))*AND(VALUE($F$10)<=93),VALUE($F$10)," ") -> 91.45285451 | D13: =IF((93<VALUE($F$10))*AND(VALUE($F$10)<=99),VALUE($F$10)," ") ->  | E13: =IF((99<VALUE($F$10))*AND(VALUE($F$10)<108),VALUE($F$10)," ") ->  | F13: =IF((108<=VALUE($F$10))*AND(VALUE($F$10)<=120),VALUE($F$10)," ") -> 
C14: Aceptable | D14: Aceptable + | E14: Buena | F14: Buena +
C15: 90 a 93 | D15: 93 a 99 | E15: 99 a 108 | F15: 108 a 120

Sheet CUADRO DE MANDO
D2: ÍNDICE DE CALIDAD DE LAS CONSTRUCCIONES
D5: PROYECTO/OBRA
D7: DATOS OBLIGATORIOS | K7: LEYENDA
D8: REF: | E8: OBRA A | L8: Colaboración positiva al IC
D9: PRESUPUESTO DE EJECUCIÓN MATERIAL (PEM) en Euros | E9: 3450728.79 | L9: Colaboración neutra al IC
D10: TIEMPO DE DURACIÓN en meses | E10: 12 | L10: Colaboración negativa al IC
D11: COMPLEJIDAD ORGANIZATIVA DE LA OBRA | E11: 1
D13: FASE PROYECTO
B15: Ref | C15: TIPO | D15: P1 INDICADORES PROYECTISTA | E15: VALORES | F15: INTERVALO | G15: MIN | H15: MAX | I15: ESTÁNDAR | J15: Peso del indicador | K15: PESO REAL | L15: Peso del grupo P1 | M15: Peso real del grupo P1 | N15: Desviación del IC | O15: ACCIONES
B16: P1.1 | C16: I- | D16: Número de aclaraciones solicitadas | E16: 12 | F16: (0,PEM/1000000) | G16: 0 | H16: =IF(E9="","",ROUNDUP((E9/150000),0)) -> 24 | I16: =IF(E9="","",ROUNDUP((G16+1/3*(H16-G16)),0)) -> 8 | J16: 10 | K16: =IF(E9="","",IF(E16="","",IF(E16<$G16,"ERROR",IF(E16>$H16,"ERROR",IF(E16<=$I16,$J16+(0.2*$J16*ABS(E16-$I16)/ABS($G16-$I16)),$J16*ABS($H16-E16)/ABS($H16-$I16)))))) -> 7.5 | O16: Valores que alcancen el valor del límite superior del intevalo del intervalo deben corregirse en un mes. Si no, rescisión de contrato. Incluir en próximo pliego de condiciones del contrato.
B17: P1.2 | C17: I- | D17: Número de complementos solicitados | E17: 2 | F17: (0,PEM/2000000) | G17: 0 | H17: =IF(E9="","",ROUNDUP((E9/1000000),0)) -> 4 | I17: =IF(E9="","",ROUNDUP((G17+1/3*(H17-G17)),0)) -> 2 | J17: 10 | K17: =IF(E9="","",IF(E17="","",IF(E17<$G17,"ERROR",IF(E17>$H17,"ERROR",IF(E17<=$I17,$J17+(0.2*$J17*ABS(E17-$I17)/ABS($G17-$I17)),$J17*ABS($H17-E17)/ABS($H17-$I17)))))) -> 10 | O17: Valores que alcancen el valor del límite superior del intevalo del intervalo deben corregirse en un mes. Si no, rescisión de contrato. Incluir en próximo pliego de condiciones del contrato.
B18: P1.3 | C18: I- | D18: Número de correcciones solicitadas | E18: 10 | F18: (0,PEM/2000000) | G18: 0 | H18: =IF(E9="","",ROUNDUP((E9/150000),0)) -> 24 | I18: =IF(E9="","",ROUNDUP((G18+1/3*(H18-G18)),0)) -> 8 | J18: 20 | K18: =IF(E9="","",IF(E18="","",IF(E18<$G18,"ERROR",IF(E18>$H18,"ERROR",IF(E18<=$I18,$J18+(0.2*$J18*ABS(E18-$I18)/ABS($G18-$I18)),$J18*ABS($H18-E18)/ABS($H18-$I18)))))) -> 17.5 | O18: Más del 50% de los valores por encima del estándar modificará los límites del intervalo el próximo mes.
B19: P1.4 | C19: I- | D19: Días de respuesta a las solicitudes por parte del proyectista | E19: 5 | F19: (1, PEM/suma de solicitudes) | G19: 0 | H19: =16 -> 16 | I19: =ROUNDUP((G19+1/3*(H19-G19)),0) -> 6 | J19: 20 | K19: =IF(E19="","",IF(E19<$G19,"ERROR",IF(E19>$H19,"ERROR",IF(E19<=$I19,$J19+(0.2*$J19*ABS(E19-$I19)/ABS($G19-$I19)),$J19*ABS($H19-E19)/ABS($H19-$I19))))) -> 20.66666667 | O19: Más del 50% de los valores por debajo del estándar supondrá apercibimiento.
B20: P1.5 | C20: I+ | D20: % PEM destinado al Plan de Control | E20: 1.25 | F20: SI PEM (O, 300000);(1.5,3) SI PEM (300000, 1000000);(1,2) SI PEM>1000000;(0,5-1,5) | G20: 0.5 | H20: 1.25 | I20: =G20+2/3*(H20-G20) -> 1 | J20: 12 | K20: =IF(E20="","",IF(E20<$G20,"ERROR",IF(E20>$H20,"ERROR",IF(E20>=$I20,$J20+(0.2*$J20*ABS(E20-$I20)/ABS($H20-$I20)),$J20*ABS($G20-E20)/ABS($G20-$I20))))) -> 14.4 | O20: Más del 50% de los valores por debajo del estándar modificará los límites del intervalo el próximo mes.
B21: P1.6 | C21: I+ | D21: Número de documentos complementarios/voluntarios | E21: 0 | F21: (0,PEM/1000000) | G21: 0 | H21: =IF(E9="","",ROUNDUP(($E$9/4000000),0)) -> 1 | I21: =IF(E9="","",ROUNDUP((G21+2/3*(H21-G21)),0)) -> 1 | J21: 5 | K21: =IF(E9="","",IF(E21="","",IF(E21<$G21,"ERROR",IF(E21>$H21,"ERROR",IF(E21>=$I21,$J21+(0.2*$J21*ABS(E21-$I21)/ABS($H21-$I21)),$J21*ABS($G21-E21)/ABS($G21-$I21)))))) -> 0 | O21: Más del 50% de los valores por encima del estándar supondrá apercibimiento.
D22: IC PARCIAL GRUPO P1 | J22: =SUM(J16:J21) -> 77 | K22: =SUM(K16:K21) -> 70.06666667 | L22: 20
D24: P2 INDICADORES SUPERVISORES PROYECTO | E24: VALORES | F24: INTERVALO | G24: MIN | H24: MAX | I24: ESTÁNDAR | J24: Peso del indicador | K24: PESO REAL | L24: Peso del grupo P2 | M24: Peso real del grupo P2 | N24: Desviación del IC | O24: ACCIONES
B25: P2.1 | C25: I- | D25: Tiempo de supervisión del proyecto (días laborables) | E25: 2 | F25: (PEM/750000, PEM/500000) | G25: =IF(E9="","",ROUNDUP((E9/2000000),0)) -> 2 | H25: =IF(E9="","",ROUNDUP((E9/500000),0)) -> 7 | I25: =IF(E9="","",ROUNDUP((G25+1/3*(H25-G25)),0)) -> 4 | J25: 10 | K25: =IF(E9="","",IF(E25="","",IF(E25<$G25,"ERROR",IF(E25>$H25,"ERROR",IF(E25<=$I25,$J25+(0.2*$J25*ABS(E25-$I25)/ABS($G25-$I25)),$J25*ABS($H25-E25)/ABS($H25-$I25)))))) -> 12 | O25: =IF(K25="","",IF(K25<$J25,"Requiere acciones correctoras",IF(K25>$J25,"Valorar acciones de estímulo",IF(K25=$J25,"No requiere acciones")))) -> Valorar acciones de estímulo
B26: P2.2 | C26: I- | D26: Tiempo de redacción del informe de supervisión (horas) | E26: 4 | F26: (PEM/1000000, PEM/750000) | G26: =IF(E9="","",ROUNDUP((E9/1000000),0)) -> 4 | H26: =IF(E9="","",ROUNDUP((E9/750000),0)) -> 5 | I26: =IF(E9="","",ROUNDUP((G26+1/3*(H26-G26)),0)) -> 5 | J26: 8 | K26: =IF(E9="","",IF(E26="","",IF(E26<$G26,"ERROR",IF(E26>$H26,"ERROR",IF(E26<=$I26,$J26+(0.2*$J26*ABS(E26-$I26)/ABS($G26-$I26)),$J26*ABS($H26-E26)/ABS($H26-$I26)))))) -> 9.6 | O26: =IF(K26="","",IF(K26<$J26,"Requiere acciones correctoras",IF(K26>$J26,"Valorar acciones de estímulo",IF(K26=$J26,"No requiere acciones")))) -> Valorar acciones de estímulo
B27: P2.3 | C27: I- | D27: Tiempo de comunicación al proyectista de las solicitudes (días laborables) | E27: 1 | F27: (1, 3) | G27: 1 | H27: 3 | I27: 2 | J27: 5 | K27: =IF(E27="","",IF(E27<$G27,"ERROR",IF(E27>$H27,"ERROR",IF(E27<=$I27,$J27+(0.2*$J27*ABS(E27-$I27)/ABS($G27-$I27)),$J27*ABS($H27-E27)/ABS($H27-$I27))))) -> 6 | O27: =IF(K27="","",IF(K27<$J27,"Requiere acciones correctoras",IF(K27>$J27,"Valorar acciones de estímulo",IF(K27=$J27,"No requiere acciones")))) -> Valorar acciones de estímulo
D28: IC PARCIAL GRUPO P2 | J28: =SUM(J25:J27) -> 23 | K28: =SUM(K25:K27) -> 27.6 | L28: 5
D29: IC PARCIAL GRUPO P | J29: =J22+J28 -> 100 | K29: =K22+K28 -> 97.66666667 | L29: =L22+L28 -> 25 | M29: =$L29*K29/100 -> 24.41666667 | N29: =M29/L29 -> 0.9766666667
D31: CONTRIBUCIÓN DEL PROYECTO AL IC | K31: =$K$29 -> 97.66666667
